Cogmind - Beta 15 @@@ ROGUE MODE // 2025.08.03 @ 21:17:29 Player: Cracklepappy Result: Destroyed by H-88 Terminator with KE Penetrator Performance ------------- Evolutions (8) 4000 Regions Visited (35) 7000 Robots Destroyed (572) 2860 Value Destroyed (26176) 26176 Prototype IDs (60) 1200 Alien Tech Used (0) 0 Bonus (14563) 14563 TOTAL SCORE: 55799 Bonus ------- High Alert Combat Kills 5497 Follower Combat Kills 2496 Entered Garrisons 1000 Entered DSFs 1000 Acquired ECA 300 Met Warlord at Base 500 MAIN.C Attacked Warlord 500 Warlord Defense Kills 828 Met Warlord at Research 2000 Invited to Help at Command 2000 Scanned by Researcher 500 Friendly Fire -2058 Cogmind --------- Core Integrity 0/1450 Matter 118/300 Energy 100/100 System Corruption 12% Temperature Cool (0) Movement Core (50) Location -2/Protoforge Parts ------- > --- POWER (2) -------- (None) > --- PROPULSION (4) --- Wheel Wheel Wheel Centrium Wheel > --- UTILITY (8) ------ (None) > --- WEAPON (9) ------- Plasma Lance > --- INVENTORY (5) ---- Heavy Regenerative Plating Advanced Component Analysis Suite Peak State ------------ > --- POWER ------------ Quantum Reactor Quantum Reactor > --- PROPULSION ------- Armored Wheel Centrium Wheel Centrium Wheel Centrium Wheel > --- UTILITY ---------- 2N-1CE's Frost Array Huge Storage Unit Experimental Optical Array Advanced Salvage Targeting Computer Experimental Targeting Computer Experimental Core Analyzer Advanced Kinecellerator Improved System Guard > --- WEAPON ----------- Railgun Railgun Helical Railgun Helical Railgun Helical Railgun Helical Railgun Helical Railgun Helical Railgun Helical Railgun > --- INVENTORY -------- Improved Quantum Reactor Wheel Compact Wheel Advanced Cooling System Matter Compressor Experimental Core Analyzer Advanced Transmission Jammer Heavy Regenerative Plating Advanced Point Defense System Advanced Hacking Suite System Mapper Advanced Component Analysis Suite Improved System Guard Long-range Tractor Beam Enhanced Nova Cannon KE Penetrator KE Penetrator KE Penetrator KE Penetrator KE Penetrator Micro-nuke Launcher Advanced Datajack Improved Plasma Cutter Plasma Lance [Rating: 191] Favorites ----------- Power F-cell Engine Engine F-cell Engine Power Core Fission Core Reactor Light Quantum Reactor Propulsion Wheel Wheel Wheel Utility Large Storage Unit Device Experimental Heat Sink Storage Large Storage Unit Processor Core Analyzer Hackware Hacking Suite Protection Core Shielding Weapon Minigun Energy Gun Heavy EM Pulse Gun Energy Cannon Heavy Plasma Cannon Ballistic Gun Minigun Ballistic Cannon Mass Driver Launcher Grenade Launcher Special Weapon Plasma Cutter Impact Weapon Makeshift Hammer Slashing Weapon Power Sword Piercing Weapon Lance Special Melee Weapon Improved Datajack Build | -11 -10 -10 -9 -9 -9 -8 -8 -8 -8 -8 -7 -7 -7 -7 -7 -7 -6 -6 -6 -6 -6 -6 -5 -5 -5 -5 -4 -4 -4 -4 -4 -3 -2 -2 -2 ------- Run | Yrd Mat Min Mat Min Exi Min Mat Gar Mat Gar Fac Was Fac Gar Fac Gar Fac Was Fac Gar Fac DSF Fac Upp Upp War Pro Fac Was Fac DSF Res Res Tes Frg Slots Evolved 16 | . . . 2 . . . 2 . . . 2 . . . . . 2 . . . . . 2 . . . . 2 . . . 2 2 . . Power 1 | . . . . . . . . . . . . . . . . . . . . . . . . . . . . 1 . . . . . . . Propulsion 2 | . . . . . . . . . . . 1 . . . . . 1 . . . . . . . . . . . . . . . . . . Utility 6 | . . . . . . . 1 . . . . . . . . . 1 . . . . . 1 . . . . 1 . . . 1 1 . . Weapon 7 | . . . 2 . . . 1 . . . 1 . . . . . . . . . . . 1 . . . . . . . . 1 1 . . Parts Attached 462 | 7 18 10 29 4 . 7 24 7 16 11 12 9 9 13 2 19 6 1 2 35 . 1 29 3 8 9 6 30 2 . 19 9 72 24 9 Power 48 | 2 . . 2 . . 1 2 . 2 2 2 2 . . 1 3 1 . 1 4 . . 1 . . 1 . 2 . . . . 11 7 1 Engine 15 | 2 . . 2 . . 1 1 . 1 . 2 . . . . 2 . . . 2 . . 1 . . 1 . . . . . . . . . Core 10 | . . . . . . . 1 . 1 2 . 1 . . 1 1 1 . . . . . . . . . . 1 . . . . . 1 . Reactor 23 | . . . . . . . . . . . . 1 . . . . . . 1 2 . . . . . . . 1 . . . . 11 6 1 Propulsion 101 | 2 4 5 8 4 . 3 5 . 4 2 4 . 1 6 . 5 1 1 . 8 . . 10 . 1 . 1 8 . . 5 . 8 2 3 Treads . | . . . . . . . . . . . . . . . . . . . . . . . . . . . . . . . . . . . . Leg . | . . . . . . . . . . . . . . . . . . . . . . . . . . . . . . . . . . . . Wheel 101 | 2 4 5 8 4 . 3 5 . 4 2 4 . 1 6 . 5 1 1 . 8 . . 10 . 1 . 1 8 . . 5 . 8 2 3 Hover . | . . . . . . . . . . . . . . . . . . . . . . . . . . . . . . . . . . . . Flight . | . . . . . . . . . . . . . . . . . . . . . . . . . . . . . . . . . . . . Utility 120 | 1 6 2 4 . . . 8 1 5 2 1 2 2 2 . 5 3 . 1 6 . 1 7 . 5 3 1 10 1 . 6 6 23 6 . Device 63 | . 1 2 3 . . . 5 1 3 1 1 . . 1 . 4 1 . . 4 . . 6 . 4 3 . 7 . . 2 1 8 5 . Storage 14 | 1 2 . . . . . 2 . 1 . . 1 . 1 . 1 . . . . . 1 . . . . . . . . . . 4 . . Processor 34 | . 1 . 1 . . . 1 . . 1 . . 1 . . . 2 . . 1 . . 1 . . . 1 3 1 . 4 5 11 . . Hackware 4 | . . . . . . . . . 1 . . . 1 . . . . . 1 . . . . . . . . . . . . . . 1 . Protection 5 | . 2 . . . . . . . . . . 1 . . . . . . . 1 . . . . 1 . . . . . . . . . . Artifact . | . . . . . . . . . . . . . . . . . . . . . . . . . . . . . . . . . . . . Weapon 193 | 2 8 3 15 . . 3 9 6 5 5 5 5 6 5 1 6 1 . . 17 . . 11 3 2 5 4 10 1 . 8 3 30 9 5 Energy Gun 24 | 2 3 . 1 . . . . . . . . 1 . . . . . . . 2 . . . . . 1 1 3 . . . . 3 6 1 Energy Cannon 29 | . 2 1 4 . . . . . . . 2 1 1 . . . . . . 1 . . 1 . . 1 . 2 . . 6 1 5 . 1 Ballistic Gun 85 | . 1 . 9 . . 3 5 4 4 3 2 1 2 1 . 2 1 . . 11 . . 6 3 2 2 1 4 . . . . 16 2 . Ballistic Cannon 34 | . . . . . . . 3 1 1 . . . 2 2 1 4 . . . 3 . . 4 . . 1 1 1 . . 2 2 4 . 2 Launcher 6 | . 1 . 1 . . . 1 . . 1 . . 1 . . . . . . . . . . . . . . . . . . . . . 1 Special Weapon 3 | . 1 . . . . . . . . 1 . . . . . . . . . . . . . . . . . . . . . . . 1 . Impact Weapon 2 | . . . . . . . . 1 . . . . . . . . . . . . . . . . . . 1 . . . . . . . . Slashing Weapon 3 | . . 1 . . . . . . . . . 2 . . . . . . . . . . . . . . . . . . . . . . . Piercing Weapon 4 | . . . . . . . . . . . 1 . . 1 . . . . . . . . . . . . . . 1 . . . 1 . . Special Melee Weapon 3 | . . 1 . . . . . . . . . . . 1 . . . . . . . . . . . . . . . . . . 1 . . Unidentified Prototypes 29 | . . . . . . . 2 . . . . 2 . . . . . . 1 . . . 2 . 1 7 1 1 . . . . 8 4 . Corrupted Parts 4 | . . . . . . . . . . . . . . . . . . . . . . . . . . 1 1 . . . 2 . . . . System Corruption 22 | . . . . . . . . . . . . . . . . . . . . . . . . . . 3 2 . . . 17 . . . . Parts Lost 137 | . 2 . 3 1 . 4 2 . 1 3 . . . 1 1 4 . 1 1 7 . 1 6 . 8 4 10 15 1 . 22 6 1 15 17 Power 13 | . . . . . . 1 . . . . . . . . 1 . . . . . . . . . . 1 . 2 . . 1 2 . 2 3 Propulsion 45 | . 1 . 3 1 . 1 1 . 1 2 . . . 1 . 1 . 1 . 1 . . 3 . 6 1 1 5 . . 5 4 . 4 2 Utility 19 | . . . . . . . . . . . . . . . . 2 . . . 2 . . 1 . 1 1 1 4 1 . 4 . . . 2 Weapon 60 | . 1 . . . . 2 1 . . 1 . . . . . 1 . . 1 4 . 1 2 . 1 1 8 4 . . 12 . 1 9 10 Highest Loss Streak 18 | . 1 . 1 1 . 3 1 . 1 2 . . . 1 1 1 . 1 1 4 . 1 5 . 5 4 4 8 1 . 18 5 1 8 17 To Critical Strikes . | . . . . . . . . . . . . . . . . . . . . . . . . . . . . . . . . . . . . Average Backups 17 | 3 11 15 14 14 15 14 14 15 14 14 14 14 14 18 20 18 17 16 17 19 20 22 24 25 24 22 17 18 19 15 16 4 20 23 14 Power 1 | . . 1 1 1 2 1 1 1 1 1 1 1 1 1 1 1 1 1 1 1 1 2 2 2 2 2 1 . . . . . 1 1 . Propulsion 1 | 2 2 1 . . . 2 2 2 2 . 1 1 1 2 4 3 2 1 1 1 1 1 3 4 2 . . . 1 1 1 . 2 1 . Utility 8 | . 2 5 4 3 4 4 4 4 4 5 6 7 7 8 8 7 7 8 7 9 9 10 9 11 11 12 10 15 11 9 8 1 10 11 8 Weapon 4 | 1 5 6 6 7 7 4 4 6 5 5 3 3 3 4 5 4 4 5 4 4 7 6 6 5 5 5 3 1 5 4 5 2 3 7 3 Tool/Special . | . . . . . . . . . . . . . . . . . . . . . . . . . . . . . . . . . . . . Unused Backups 113 | 1 12 2 6 . . 4 6 . 4 2 1 . . 3 1 4 1 . 2 6 . . 5 . . 10 . 2 1 . 9 . 21 4 6 Power 8 | . . 1 . . . . . . . . . . . . . . . . 1 1 . . 2 . . 1 . . . . . . 2 . . Propulsion 21 | 1 2 . . . . 2 4 . 1 1 . . . . . 3 1 . 1 1 . . 1 . . . . . . . . . 3 . . Utility 44 | . 1 1 4 . . 2 . . . . . . . . . 1 . . . . . . 2 . . 6 . 2 1 . 2 . 12 4 6 Weapon 39 | . 9 . 2 . . . 2 . 3 1 1 . . 3 1 . . . . 4 . . . . . 2 . . . . 7 . 4 . . Tool/Special 1 | . . . . . . . . . . . . . . . . . . . . . . . . . . 1 . . . . . . . . . Average Slot Usage (%) 93 | . 99 100 99 99 82 96 99 100 99 99 98 99 99 99 100 91 85 91 85 93 100 100 94 99 97 86 66 80 84 85 62 49 92 98 53 Engine 4 | . 14 14 11 11 11 9 6 9 6 . 6 1 . . 1 5 3 . . . . . . 5 5 5 5 1 . . . 1 . . . Core 1 | . . . . . . . 2 . 2 9 . 5 7 7 5 1 2 6 1 . . . . . . . . 1 . . . . . . . Reactor 1 | . . . . . . . . . . . . . . . . . . . 4 5 6 6 4 . . . . 2 3 3 2 . 7 7 4 Wheel 19 | . 27 28 21 21 22 19 17 18 17 17 23 23 23 22 23 22 25 26 26 25 26 26 22 22 20 10 9 14 21 21 11 15 16 16 9 Device 10 | . 2 14 10 . . . 13 18 10 9 11 14 5 7 7 12 13 13 12 12 13 13 11 11 11 13 16 20 20 19 13 . 5 5 2 Storage 7 | . 14 14 11 11 11 11 9 9 9 9 7 7 7 7 7 7 6 6 6 6 6 6 5 5 5 5 5 5 5 5 4 . 3 4 2 Processor 7 | . . . . 11 11 11 4 . . 6 2 . 6 7 7 1 5 6 6 5 6 6 11 11 11 8 4 5 4 5 6 29 23 22 14 Energy Gun 1 | . 21 . 2 . . . . . . . . . . . . . . . . 1 . . . . . . 2 5 . . . . 2 1 7 Energy Cannon 3 | . 3 23 20 . . . . . . . 5 . . . . . . . . 2 . . 3 5 5 4 . 1 5 . 9 1 4 . . Ballistic Gun 23 | . 1 3 20 43 26 44 27 34 37 41 39 44 37 29 24 13 . 6 3 19 33 40 21 23 24 24 11 4 14 15 5 . 20 35 4 Ballistic Cannon 7 | . . . . . . . 17 10 7 . . . 6 13 20 22 25 13 21 7 . . 10 11 9 5 5 6 7 8 5 . 4 . 1 Peak Build Rating 191 | 6 12 14 25 27 27 27 36 35 36 38 40 49 48 59 60 64 72 69 74 73 53 55 76 77 78 124 106 114 114 107 123 74 185 191 166 Average Rating 64 | 5 9 11 19 25 22 25 30 32 31 33 36 43 45 53 58 59 69 66 70 60 52 53 66 75 75 80 81 96 95 104 81 49 146 180 91 On Entrance 56 | . 6 11 11 25 27 27 26 30 33 36 33 40 44 45 59 58 64 66 69 72 53 52 55 73 77 73 104 73 106 72 107 38 35 185 135 Naked Turns 26 | . . . . . . . . . . . . . . . . . . . . . . . . . . . . . . . 11 . . . 15 Heaviest Build 196 | 14 33 34 42 40 40 42 51 53 49 42 54 60 59 84 87 110 110 105 112 112 74 114 142 140 139 165 164 169 167 153 178 40 196 183 141 Greatest Support 64 | 26 30 20 32 26 22 26 20 20 20 26 42 30 36 36 36 36 48 48 48 52 48 48 60 42 54 32 26 64 64 64 64 52 64 60 42 Greatest Overweight (x) 16 | . 1 1 3 3 1 3 2 2 4 4 1 16 1 2 2 3 3 2 2 3 1 3 5 4 4 10 12 13 2 2 7 3 3 3 3 Average Overweight (x) 2 | . . 1 1 1 1 1 2 2 2 1 . 5 1 1 2 2 2 1 2 1 1 2 2 3 3 4 4 3 1 2 1 . 1 2 1 Largest Inventory Capacity 25 | 8 15 15 15 15 15 15 15 15 15 15 15 15 15 20 20 20 20 20 20 20 20 25 25 25 25 25 25 25 25 25 25 5 25 25 25 Average Capacity 19 | 6 12 15 15 15 15 15 15 15 15 15 15 15 15 18 20 20 20 20 20 20 20 24 25 25 25 25 25 25 25 25 22 5 21 25 18 Most Carried 25 | 8 15 15 15 15 15 15 15 15 15 15 15 15 15 20 20 20 20 20 20 20 20 25 25 25 25 25 25 25 25 24 25 5 25 25 22 Average Carried 18 | 3 11 14 14 14 15 14 14 14 14 14 14 14 14 18 20 19 19 19 19 19 20 22 24 24 24 24 23 24 24 20 20 4 20 24 14 Final Capacity 25 | 8 15 15 15 15 15 15 15 15 15 15 15 15 15 20 20 20 20 20 20 20 20 25 25 25 25 25 25 25 25 25 5 5 25 25 5 Final Carried 25 | 8 15 15 14 15 15 15 15 15 15 15 15 15 15 20 20 20 20 19 20 20 20 25 25 25 25 23 25 24 25 20 5 5 25 22 3 Class Distribution -------------------- 57% | Scavenger-Executioner 18% | Gunner 9% | Scavenger-Gunner 8% | Mutant 3% | Scavenger-Mutant Dominant Class ---------------- Mutant | -10/Materials Mutant | -10/Mines Gunner | -9/Materials Gunner | -9/Mines Gunner | -9/Exiles Gunner | -8/Mines Gunner | -8/Materials Gunner | -8/Garrison Gunner | -8/Materials Scavenger-Gunner | -8/Garrison Scavenger-Executioner | -7/Factory Scavenger-Executioner | -7/Waste Scavenger-Executioner | -7/Factory Scavenger-Executioner | -7/Garrison Scavenger-Executioner | -7/Factory Scavenger-Executioner | -7/Garrison Scavenger-Executioner | -6/Factory Scavenger-Gunner | -6/Waste Scavenger-Executioner | -6/Factory Scavenger-Executioner | -6/Garrison Scavenger-Executioner | -6/Factory Scavenger-Executioner | -6/DSF Scavenger-Executioner | -5/Factory Scavenger-Executioner | -5/Upper Caves Scavenger-Executioner | -5/Upper Caves Scavenger-Executioner | -5/Warlord Scavenger-Skirmisher | -4/Proximity Caves Scavenger-Mutant | -4/Factory Scavenger-Skirmisher | -4/Waste Scavenger-Executioner | -4/Factory Scavenger-Executioner | -4/DSF Mutant | -3/Research Scavenger-Executioner | -2/Research Scavenger-Executioner | -2/Testing Scavenger-Executioner | -2/Protoforge Resources | -11 -10 -10 -9 -9 -9 -8 -8 -8 -8 -8 -7 -7 -7 -7 -7 -7 -6 -6 -6 -6 -6 -6 -5 -5 -5 -5 -4 -4 -4 -4 -4 -3 -2 -2 -2 ----------- Run | Yrd Mat Min Mat Min Exi Min Mat Gar Mat Gar Fac Was Fac Gar Fac Gar Fac Was Fac Gar Fac DSF Fac Upp Upp War Pro Fac Was Fac DSF Res Res Tes Frg Matter Collected 32473 | 270 478 323 715 296 60 532 1977 1449 761 2140 938 1154 784 2361 188 2105 916 . 677 3125 . 427 2340 237 843 987 1020 677 . . 139 3 1584 2896 71 Remotely 4905 | . . . . . . . 228 114 50 . . . 259 250 . 419 916 . 113 564 . 427 645 143 75 360 226 10 . . . . . 106 . Salvage Created 25904 | 200 951 47 1679 179 . 876 2090 816 761 1118 754 728 572 1653 59 1743 696 . 265 1815 . 290 1376 85 678 395 598 971 . . 504 . 608 3089 308 Parts 1364 | 19 52 2 118 10 . 55 106 53 51 70 39 11 34 80 1 84 25 . 5 87 . 13 74 4 26 20 23 55 . . 9 . 22 201 15 Haulers Intercepted 25 | . 2 . 6 . . . 6 . 5 . . . . . . . . . 2 . . . 1 . 1 . . . . . . . 1 1 . Recyclers Shooed 9 | . . . . . . . 1 . 2 . 1 . . . . . 1 . 1 . . . 3 . . . . . . . . . . . . Parts Field Recycled . | . . . . . . . . . . . . . . . . . . . . . . . . . . . . . . . . . . . . Retrieved Matter . | . . . . . . . . . . . . . . . . . . . . . . . . . . . . . . . . . . . . Parts Self-Destructed 59 | . . . . . . . . . . . . . . . . . . . . . . . . 4 26 . 29 . . . . . . . . Prevented 3 | . . . . . . . . . . . . . . . . . . . . . . . . . . . 3 . . . . . . . . Kills | -11 -10 -10 -9 -9 -9 -8 -8 -8 -8 -8 -7 -7 -7 -7 -7 -7 -6 -6 -6 -6 -6 -6 -5 -5 -5 -5 -4 -4 -4 -4 -4 -3 -2 -2 -2 ------- Run | Yrd Mat Min Mat Min Exi Min Mat Gar Mat Gar Fac Was Fac Gar Fac Gar Fac Was Fac Gar Fac DSF Fac Upp Upp War Pro Fac Was Fac DSF Res Res Tes Frg Combat Hostiles Destroyed 421 | . 22 6 30 1 . 22 31 22 6 26 11 . 13 34 2 31 14 . 2 38 . 5 16 1 11 7 12 12 . . 9 . 1 30 6 Melee 4 | . . . . . . . . . . . . . . . . . . . . 2 . . . . . . . 2 . . . . . . . Guns 241 | . 16 . 9 1 . 22 20 18 5 22 10 . 4 22 1 15 . . . 19 . 5 4 1 5 3 4 5 . . . . . 30 . Cannons 127 | . . 2 14 . . . 10 4 1 . 1 . 4 12 1 11 14 . 2 12 . . 11 . 6 4 3 5 . . 6 . 1 . 3 AOE 44 | . 6 4 6 . . . 1 . . 4 . . 5 . . 5 . . . 5 . . . . . . 5 . . . . . . . 3 Classes Destroyed 27 | 3 6 1 2 . . 2 1 . . 1 . 1 . 1 . 2 . . 1 . . . 1 . . 1 1 . . . . . . 3 . Worker 35 | 2 . 2 3 2 . 1 4 . 1 . 4 . 1 . . . 2 . . . . . 2 . . . . 3 . . . . 3 2 3 Builder 27 | . 1 . 5 . . 2 3 . 3 . 1 . . . . . . . . . . . 5 . . . . 4 . . . . 1 2 . Tunneler 14 | 5 . . . 1 . 3 . . 2 . . . . . . . 2 . . . . . 1 . . . . . . . . . . . . Hauler 25 | . 2 . 6 . . . 6 . 5 . . . . . . . . . 2 . . . 1 . 1 . . . . . . . 1 1 . Recycler 22 | 1 . . 3 . . 2 4 . 1 . . . 2 . . . . . 1 . . . 3 . . . . 3 . . . . 2 . . Minesweeper 1 | . . . . . . . . . . . . . . . . . . . . . . . . . . . 1 . . . . . . . . Mechanic 3 | . . . 1 . . . . . . . 1 . . . . . . . . . . . . . . . . . . . . . . 1 . Operator 14 | . 2 . 2 . . . 2 . 2 . 2 . 1 . . . . . . . . . . . . . . . . . . . 1 2 . Watcher 5 | . 1 . 1 . . . 1 . . . . . . 1 . . . . . . . . . . . . . . . . . . . 1 . Swarmer 95 | . 5 . 10 . . 15 . 7 . 7 . . 4 12 . 8 . . . 13 . . . . . 2 4 4 . . . . . . 4 Cutter 2 | . . . . . . . . . . . . . . . . 2 . . . . . . . . . . . . . . . . . . . Saboteur 6 | . . . . . . . . . . . . . . 1 . . . . . 5 . . . . . . . . . . . . . . . Grunt 169 | . 17 . 11 . . 5 20 5 2 10 10 . 4 13 1 6 12 . 1 8 . 3 7 . 7 2 5 3 . . 4 . . 13 . Brawler 6 | . . . . . . 1 1 . . . . . . 2 . 1 . . . . . . . . . . 1 . . . . . . . . Duelist 6 | . . . . . . . 1 1 1 . . . . . . 2 . . . . . . . . . . 1 . . . . . . . . Researcher 2 | . . . . . . . . . . . . . . . . . . . . . . . . . . . . . . . . . . 2 . Sentry 55 | . . . 9 . . . 9 8 2 4 1 . 2 5 . 5 2 . . 3 . . 3 1 . . . . . . . . 1 . . Specialist 7 | . . . . . . . . . . . . . . . . 2 . . . . . 2 . . . . . . . . 3 . . . . Hunter 27 | . . . . . . 1 . 1 1 . . . 3 2 . 3 . . . 3 . . 5 . 1 . . 2 . . 1 . . 2 2 Programmer 32 | . . . . . . . . . . 5 . . . . 1 2 . . . 4 . . 1 . 2 1 1 3 . . . . . 12 . Heavy 2 | . . . . . . . . . . . . . . . . . . . . . . . 1 . . . . . . . 1 . . . . Behemoth 4 | . . . . . . . . . . . . . . . . . . . 1 2 . . . . 1 . . . . . . . . . . Executioner 1 | . . . . . . . . . . . . . . . . . . . . . . . . . . 1 . . . . . . . . . Assembled 6 | . . 6 . . . . . . . . . . . . . . . . . . . . . . . . . . . . . . . . . Surgeon 1 | . . . . . . . . . . . . . . . . 1 . . . . . . . . . . . . . . . . . . . Wasp 2 | . . . . . . . . . . . . . . . . . . . . . . . . . . . . . . . . . . 2 . Thug 2 | . . . . . . . . . . . . . . 1 . . . . . . . . . . . 1 . . . . . . . . . Savage 2 | . . . . . . . . . . . . . . . . . 1 . . . . . . . . 1 . . . . . . . . . Butcher 1 | . . . . . . . . . . . . . . . . . . . . 1 . . . . . . . . . . . . . . . Martyr 1 | . . . . . . . . . . . . 1 . . . . . . . . . . . . . . . . . . . . . . . Mutant 1 | . . . . . . . . . . . . . . . . . . . . . . . . . . . . . . . . . . 1 . Troll 1 | . . . . . . . . . . . . . . . . . . . . . . . . . . . . . . . . . . 1 . Best Kill Streak 10 | 8 4 3 9 3 . 5 9 7 4 4 6 . 8 4 1 4 6 . 2 6 . 3 10 1 4 4 7 5 . . 5 . 2 9 6 Combat Bots Only 7 | . 4 3 6 1 . 4 5 7 2 4 6 . 5 4 1 4 5 . 1 6 . 3 5 1 4 4 7 3 . . 5 . 1 7 6 Max Kills in Single Turn 4 | 1 2 2 4 1 . 2 3 2 2 4 3 1 3 2 1 2 2 . 1 3 . 1 3 1 1 3 1 2 . . 1 . 1 2 3 Gunslinging 1 | . 1 . . . . 1 1 1 . 1 . . . . . . . . . . . . . . . . . . . . . . . 1 . Exploded 4 | . 2 1 3 . . . 1 . . 4 . . 3 . . 2 . . . 3 . . . . . . 1 . . . . . . . 3 Melee 1 | . . . . . . . . . . . . . . . . . . . . 1 . . . . . . . 1 . . . . . . . Uniques/NPCs Destroyed 1 | . . . . 1 . . . . . . . . . . . . . . . . . . . . . . . . . . . . . . . YI-UF0 (-9/Mines) Combat | -11 -10 -10 -9 -9 -9 -8 -8 -8 -8 -8 -7 -7 -7 -7 -7 -7 -6 -6 -6 -6 -6 -6 -5 -5 -5 -5 -4 -4 -4 -4 -4 -3 -2 -2 -2 -------- Run | Yrd Mat Min Mat Min Exi Min Mat Gar Mat Gar Fac Was Fac Gar Fac Gar Fac Was Fac Gar Fac DSF Fac Upp Upp War Pro Fac Was Fac DSF Res Res Tes Frg Hostile Shots Fired 2409 | . 44 7 78 20 . 70 76 45 28 77 21 . 71 178 4 142 40 1 54 250 . 9 112 4 64 42 87 120 1 . 307 91 12 196 158 Missed 793 | . 16 3 19 7 . 16 32 16 9 18 4 . 25 55 2 55 18 . 20 75 . 4 38 . 17 13 32 46 . . 132 34 6 52 29 Hits 1616 | . 28 4 59 13 . 54 44 29 19 59 17 . 46 123 2 87 22 1 34 175 . 5 74 4 47 29 55 74 1 . 175 57 6 144 129 Melee 20 | . . 1 . . . . . . . . . . . . . 2 . 1 . 7 . . . . . 8 . . 1 . . . . . . Projectile 1596 | . 28 3 59 13 . 54 44 29 19 59 17 . 46 123 2 85 22 . 34 168 . 5 74 4 47 21 55 74 . . 175 57 6 144 129 AOE 20 | . . . . 16 . . . . . 1 . . . . . 2 . . . . . . . . . . . 1 . . . . . . . Critical Strikes 69 | . 2 . 1 . . 1 4 1 1 3 . . . 4 . 3 1 . . 7 . 1 2 1 1 1 4 2 . . 6 3 . 12 8 Part Disruptions 1 | . . . . . . . . . . . . . . . . . . . . . . 1 . . . . . . . . . . . . . Damage Taken 28572 | . 353 77 750 502 . 625 679 360 375 852 256 . 506 1459 188 1158 376 35 639 2311 . 147 1483 127 1023 728 1094 1541 48 . 2820 929 160 3760 3211 Core 4772 | . 82 15 108 43 . 123 170 73 33 52 43 . 11 125 . 85 91 . 41 256 . . 301 . 93 199 136 223 . . 691 325 20 188 1245 Absorbed by Shields 237 | . . . . . . . . . . 5 . . . 52 . . . . . . . . . . . 124 . 44 . . . . 12 . . Redirected to Shielding 17 | . 17 . . . . . . . . . . . . . . . . . . . . . . . . . . . . . . . . . . Ignored by Resistances 43 | . . . . . . . . . . . . . . . . . . . . . . . . . . 43 . . . . . . . . . Regen/Repaired (Parts) 2426 | . . . 162 . . . 53 . 18 . 33 288 124 919 59 38 . . 345 . . . . . . 219 . . . . . . 15 153 . Core Remaining (%) 52 | 100 . 61 . . . 31 . . . 40 . . . . . 62 . . . . . 54 . . . . 27 . . . 20 75 . . . Volleys Fired 1219 | 33 53 26 77 12 . 38 63 74 42 72 28 10 26 92 5 68 24 4 24 143 . 10 55 3 23 10 28 35 . . 35 14 19 59 14 Largest 9 | 1 2 2 4 4 . 4 5 5 5 5 6 6 6 6 6 6 4 4 4 6 . 6 7 7 7 6 6 5 . . 7 3 9 9 9 Hottest 635 | 50 100 120 248 92 . 92 157 149 140 123 186 186 189 208 223 225 224 205 224 259 . 143 307 301 301 312 278 276 . . 576 221 478 336 635 Shots Fired 4436 | 33 99 41 276 48 . 153 308 207 185 225 128 60 135 401 31 260 84 7 60 316 . 58 282 10 147 54 75 106 . . 103 19 35 444 46 Gun 2955 | 33 92 4 136 48 . 153 226 136 162 199 100 50 107 266 17 133 . 1 11 147 . 58 173 5 85 26 45 56 . . 17 . 13 436 20 Cannon 1379 | . . 26 136 . . . 80 71 23 19 28 10 26 129 14 123 84 6 49 118 . . 109 5 62 28 23 50 . . 86 19 22 8 25 Launcher 40 | . 2 11 4 . . . 2 . . 2 . . 2 . . 4 . . . 5 . . . . . . 7 . . . . . . . 1 Special 62 | . 5 . . . . . . . . 5 . . . 6 . . . . . 46 . . . . . . . . . . . . . . . Kinetic 3702 | . . 4 123 48 . 153 306 207 185 218 100 50 133 395 31 256 84 7 60 206 . 58 252 7 126 44 53 69 . . 48 6 17 436 20 Thermal 571 | 33 8 26 149 . . . . . . 5 28 10 . 6 . . . . . 105 . . 30 3 21 8 . 27 . . 50 13 18 8 23 Explosive 40 | . 2 11 4 . . . 2 . . 2 . . 2 . . 4 . . . 5 . . . . . . 7 . . . . . . . 1 Electromagnetic 106 | . 89 . . . . . . . . . . . . . . . . . . . . . . . . . . 10 . . 5 . . . 2 Entropic 17 | . . . . . . . . . . . . . . . . . . . . . . . . . . 2 15 . . . . . . . . Robot Hit Streak 16 | 6 8 3 16 10 . 12 13 11 6 8 9 13 7 10 3 12 6 2 11 16 . 6 14 4 10 12 7 5 . . 12 4 9 7 9 Robot Miss Streak 14 | 2 7 6 5 2 . 3 5 5 3 6 4 3 10 6 8 8 4 1 6 13 . 4 14 . 6 8 4 5 . . 13 14 1 10 2 Penetration Max 1 | . . . . . . . . . . . . . 1 1 . 1 1 . 1 1 . . 1 . . 1 1 1 . . . . . 1 . Secondary Targets 42 | . 2 . 3 . . 6 5 1 . 8 . . . 2 . 1 . . . 2 . 2 . . . . . . . . . . . 10 . Max Gunslinging Chain 1 | . 1 . 1 . . 1 1 1 . 1 . . . 1 . 1 . . . 1 . 1 . . . . . . . . . . . 1 . Shots Hit Robots 2206 | 21 55 8 133 31 . 86 176 86 82 118 63 51 62 178 7 141 32 3 33 189 . 35 135 2 67 33 28 68 . . 67 6 20 156 34 Core Hits 1119 | 9 36 15 62 8 . 40 96 36 39 48 35 10 36 78 2 72 20 . 10 113 . 28 85 1 29 14 19 30 . . 26 . 8 97 17 Critical Kills 28 | . . 1 1 1 . 1 . . 1 2 . . . 3 . 2 . . . . . . 3 1 1 2 1 1 . . 1 . 1 5 . Critical Parts Destroyed 37 | . . . . . . 3 2 3 1 3 1 . . 1 . 2 . . . . . . 7 . 3 1 2 . . . . . . 8 . Critical Strikes 121 | 3 3 1 3 1 . 4 2 3 2 5 1 1 1 5 . 5 3 . 4 10 . . 13 1 8 5 7 11 . . 3 2 1 13 . Burn 5 | 3 . . 1 . . . . . . . . . . . . . . . . . . . . . . . . 1 . . . . . . . Meltdown 4 | . . . 1 . . . . . . . . . . . . . . . . . . . 1 . . . . . . . 1 . 1 . . Destroy 62 | . . 1 1 1 . 4 2 2 2 5 1 1 . 4 . 4 . . . . . . 9 1 5 3 2 1 . . . . . 13 . Blast 39 | . . . . . . . . . . . . . 1 1 . 1 3 . 4 7 . . 3 . 3 2 4 6 . . 2 2 . . . Corrupt 3 | . 3 . . . . . . . . . . . . . . . . . . . . . . . . . . . . . . . . . . Smash 1 | . . . . . . . . 1 . . . . . . . . . . . . . . . . . . . . . . . . . . . Sever 1 | . . . . . . . . . . . . . . . . . . . . 1 . . . . . . . . . . . . . . . Impale 5 | . . . . . . . . . . . . . . . . . . . . 2 . . . . . . . 3 . . . . . . . Detonate 1 | . . . . . . . . . . . . . . . . . . . . . . . . . . . 1 . . . . . . . . Melee Attacks 218 | . . 1 . 1 . . . 9 . 31 4 10 . 33 . 37 1 . . 34 . . 1 . . 16 . 32 . . . . 2 2 4 Impact 43 | . . . . . . . . 8 . 31 . . . . . . . . . . . . . . . . . 4 . . . . . . . Slashing 13 | . . 1 . 1 . . . . . . . 10 . 1 . . . . . . . . . . . . . . . . . . . . . Piercing 106 | . . . . . . . . . . . 2 . . 23 . 30 . . . 18 . . . . . . . 27 . . . . . 2 4 Sneak Attacks 74 | . . . . . . . . 1 . . 4 5 . 9 . 7 1 . . 14 . . 1 . . 16 . 11 . . . . 2 . 3 Combat Hostiles . | . . . . . . . . . . . . . . . . . . . . . . . . . . . . . . . . . . . . Follow-up Attacks . | . . . . . . . . . . . . . . . . . . . . . . . . . . . . . . . . . . . . Damage Inflicted 60592 | 264 1319 464 2909 475 . 1326 3594 1763 1573 2277 1348 1665 1693 4111 252 5099 1936 135 1725 5389 . 568 3392 39 1707 1390 1779 2493 . . 2090 249 715 5401 1452 Guns 29274 | 264 940 21 988 475 . 1326 2298 1302 1183 2024 850 618 919 2364 79 1347 . 20 158 1502 . 568 1512 39 907 389 627 516 . . 275 . 95 5383 285 Cannons 21235 | . . 122 1399 . . . 1014 361 224 . 361 275 293 1339 173 1616 1936 115 1567 2136 . . 1875 . 800 1001 402 934 . . 1814 249 620 . 609 Explosions 4342 | . 376 321 522 . . . 282 . 166 211 . . 481 . . 599 . . . 356 . . . . . . 750 . . . . . . . 278 Melee 4988 | . . . . . . . . 100 . . 137 772 . 340 . 1537 . . . 779 . . . . . . . 1043 . . . . . . 280 Ramming 27 | . 3 . . . . . . . . . . . . . . . . . . . . . 5 . . . . . . . 1 . . 18 . Kinetic 42742 | . . 21 821 475 . 1326 3312 1663 1407 2024 850 618 1212 3703 252 2963 1936 135 1725 3146 . 568 2879 39 1431 1184 780 1141 . . 925 210 142 5383 471 Thermal 7423 | 264 301 122 1566 . . . . . . 42 361 275 96 68 . . . . . 1108 . . 508 . 276 167 55 232 . . 1032 39 573 . 338 Explosive 3750 | . 101 321 522 . . . 282 . . 211 . . 385 . . 599 . . . 356 . . . . . . 695 . . . . . . . 278 Electromagnetic 1374 | . 914 . . . . . . . 166 . . . . . . . . . . . . . . . . . . 77 . . 132 . . . 85 Impact 100 | . . . . . . . . 100 . . . . . . . . . . . . . . . . . . . . . . . . . . . Slashing 772 | . . . . . . . . . . . . 772 . . . . . . . . . . . . . . . . . . . . . . . Piercing 4116 | . . . . . . . . . . . 137 . . 340 . 1537 . . . 779 . . . . . . . 1043 . . . . . . 280 Entropic 288 | . . . . . . . . . . . . . . . . . . . . . . . . . . 39 249 . . . . . . . . Highest Corruption 35 | . . . 1 1 1 1 1 1 1 5 . . . . 4 5 . 6 6 8 8 8 2 2 3 5 7 . 6 6 35 . 1 . 12 Average Corruption 3 | . . . 1 1 1 1 1 1 1 3 . . . . 3 4 . 6 6 7 8 8 1 2 2 3 5 . 6 6 15 . 1 . 12 Corruption Purged . | . . . . . . . . . . . . . . . . . . . . . . . . . . . . . . . . . . . . Corruption Blocked . | . . . . . . . . . . . . . . . . . . . . . . . . . . . . . . . . . . . . Effects 351 | . . . 3 4 6 8 12 10 8 29 . . . . 4 41 . 4 13 69 . 9 10 13 32 3 49 . 1 . 18 . 2 . 3 Message Errors 80 | . . . 1 2 3 2 3 3 2 8 . . . . 1 9 . 1 6 13 . . 1 1 5 2 12 . . . 3 . 2 . . Matter Fused 84 | . . . . 2 1 2 2 2 3 5 . . . . 1 10 . . 2 20 . 2 3 2 11 . 13 . . . 2 . . . 1 Heat Flow Errors 42 | . . . . . . 1 1 1 1 4 . . . . 1 6 . . . 8 . 1 1 3 3 . 6 . 1 . 3 . . . 1 Energy Discharges 41 | . . . 1 . 1 1 2 1 . 5 . . . . . 5 . 1 . 8 . . . 2 3 1 9 . . . 1 . . . . Parts Rejected 5 | . . . . . . . 2 . . . . . . . . . . . . 2 . . . . . . 1 . . . . . . . . Parts Fused 4 | . . . . . . . . 1 . . . . . . . 1 . . . 1 . . 1 . . . . . . . . . . . . Data Loss (minor) 43 | . . . . . 1 1 1 2 1 1 . . . . . 6 . . 3 6 . 3 2 3 4 . 5 . . . 4 . . . . Data Loss (major) 16 | . . . . . . . 1 . 1 1 . . . . . 1 . . 1 5 . 1 1 1 2 . 1 . . . . . . . . Misfires 15 | . . . 1 . . 1 . . . 3 . . . . 1 . . 1 . 3 . . . 1 1 . 1 . . . 2 . . . . Alerts 5 | . . . . . . . . . . . . . . . . 1 . . 1 1 . . 1 . . . 1 . . . . . . . . Misdirections 3 | . . . . . . . . . . . . . . . . . . . . . . . . . . . . . . . 2 . . . 1 Weapon Failures 13 | . . . . . . . . . . 2 . . . . . 2 . 1 . 2 . 2 . . 3 . . . . . 1 . . . . Overload Shots . | . . . . . . . . . . . . . . . . . . . . . . . . . . . . . . . . . . . . Overflow Damage 1607 | . . 9 28 . . . 20 100 . . 25 128 1 10 6 158 82 . 71 240 . . 87 . 16 10 161 308 . . . . 62 . 85 Projectiles 645 | . . . 8 . . . 20 . . . . . . 10 6 15 82 . 71 146 . . 87 . 16 10 54 58 . . . . 62 . . Explosions 202 | . . 9 20 . . . . . . . . . 1 . . 46 . . . 19 . . . . . . 107 . . . . . . . . Melee 760 | . . . . . . . . 100 . . 25 128 . . . 97 . . . 75 . . . . . . . 250 . . . . . . 85 Knockbacks 98 | . . . . . . . 9 6 2 . . . 1 6 2 9 7 . 5 7 . . 10 . 2 6 1 5 . . 10 4 . . 6 Impact . | . . . . . . . . . . . . . . . . . . . . . . . . . . . . . . . . . . . . Kinetic 93 | . . . . . . . 9 5 2 . . . 1 6 2 9 6 . 5 5 . . 10 . 2 6 1 5 . . 10 4 . . 5 Secondary 5 | . . . . . . . . 1 . . . . . . . . 1 . . 2 . . . . . . . . . . . . . . 1 Self-Inflicted Damage 250 | . 38 16 . . . . . . . . . . . . . 63 . . . . . . 2 . . . 78 . . . . . . 9 44 Shots 6 | . 1 1 . . . . . . . . . . . . . 1 . . . . . . . . . . 2 . . . . . . . 1 Rammed 7 | . 1 . . . . . . . . . . . . . . . . . . . . . 1 . . . . . . . 1 1 1 2 . Targets Rammed 7 | . 1 . . . . . . . . . . . . . . . . . . . . . 1 . . . . . . . 1 1 1 2 . Kicked . | . . . . . . . . . . . . . . . . . . . . . . . . . . . . . . . . . . . . Crushed . | . . . . . . . . . . . . . . . . . . . . . . . . . . . . . . . . . . . . Highest Temperature 470 | 110 300 190 247 104 . 228 116 117 121 274 129 68 306 254 229 261 134 12 12 209 . 74 122 151 301 316 164 332 189 . 396 60 228 470 147 Average Temperature 69 | 44 74 93 93 41 . 41 20 43 20 98 37 27 96 54 45 67 40 7 9 50 . 74 39 54 107 100 78 118 103 . 144 20 52 178 63 Received Heat Transfer 5897 | . 174 20 213 . . 189 414 108 108 198 153 . 81 427 . 192 138 . 120 513 . 54 90 18 183 20 238 183 . . 484 215 23 360 981 Effects 16 | . . . 1 . . . . . . . . . 1 2 . . . . . . . . . . 3 3 . 1 . . . . 1 4 . Shutdowns 1 | . . . . . . . . . . . . . . . . . . . . . . . . . . . . . . . . . . 1 . Energy Bleed 5 | . . . 1 . . . . . . . . . . . . . . . . . . . . . 3 . . . . . . . 1 . . Interference 6 | . . . . . . . . . . . . . 1 2 . . . . . . . . . . . 3 . . . . . . . . . Matter Decay 2 | . . . . . . . . . . . . . . . . . . . . . . . . . . . . . . . . . . 2 . Short Circuit 1 | . . . . . . . . . . . . . . . . . . . . . . . . . . . . 1 . . . . . . . Damage (major) 1 | . . . . . . . . . . . . . . . . . . . . . . . . . . . . . . . . . . 1 . Siege Activations . | . . . . . . . . . . . . . . . . . . . . . . . . . . . . . . . . . . . . Martial Activations . | . . . . . . . . . . . . . . . . . . . . . . . . . . . . . . . . . . . . Shielding Activations . | . . . . . . . . . . . . . . . . . . . . . . . . . . . . . . . . . . . . Robots Disrupted 1 | . . . . . . . . . 1 . . . . . . . . . . . . . . . . . . . . . . . . . . Combat Hostiles 1 | . . . . . . . . . 1 . . . . . . . . . . . . . . . . . . . . . . . . . . Robots Corrupted 1 | . . . . . . . . . . . . . . . . . . . . . . . . . . . . . . . 1 . . . . Combat Hostiles 1 | . . . . . . . . . . . . . . . . . . . . . . . . . . . . . . . 1 . . . . Parts Fried 11 | . 6 . . . . . . 2 . . . . . . . . . . . . . . . . . 2 . . . . 1 . . . . Impact Corruptions 3 | . . . . . . . . 1 . . . . . . . . 1 . . 1 . . . . . . . . . . . . . . . Robots Melted 4 | . . . 1 . . . . . . . . . . . . . . . . . . . 1 . . . . . . . 1 . 1 . . Combat Hostiles 3 | . . . 1 . . . . . . . . . . . . . . . . . . . 1 . . . . . . . 1 . . . . Parts Melted 29 | 6 . . 13 . . . . . . . . . . 2 . . . . . 1 . . 2 . . . . 1 . . 2 . 2 . . Heat Transferred 12964 | 999 374 259 3330 . . . . . . 148 518 370 50 222 . . . . . 2411 . . 800 . 400 250 . 518 . . 1279 37 518 . 481 Parts Sabotaged 16 | . . . . . . . . . . . . . . . . . . . . 16 . . . . . . . . . . . . . . . Parts Stolen . | . . . . . . . . . . . . . . . . . . . . . . . . . . . . . . . . . . . . Parts Stripped . | . . . . . . . . . . . . . . . . . . . . . . . . . . . . . . . . . . . . Power Chain Reactions 6 | . 6 . . . . . . . . . . . . . . . . . . . . . . . . . . . . . . . . . . Alert | -11 -10 -10 -9 -9 -9 -8 -8 -8 -8 -8 -7 -7 -7 -7 -7 -7 -6 -6 -6 -6 -6 -6 -5 -5 -5 -5 -4 -4 -4 -4 -4 -3 -2 -2 -2 ------- Run | Yrd Mat Min Mat Min Exi Min Mat Gar Mat Gar Fac Was Fac Gar Fac Gar Fac Was Fac Gar Fac DSF Fac Upp Upp War Pro Fac Was Fac DSF Res Res Tes Frg Maximum Alert Level 5 | . 1 . 2 . . 1 2 4 3 4 3 1 3 5 4 5 4 2 1 5 4 4 3 . . . . . . . . . . 3 2 Low Security (%) 38 | 100 42 100 11 100 . 87 27 . . . . 85 63 . . . . . . . . . . . . . . 100 100 100 100 100 100 35 . Level 1 14 | . 57 . 41 . . 12 24 15 . 3 . 14 24 . . . . . 100 8 . . 12 . . . . . . . . . . 40 76 Level 2 17 | . . . 46 . . . 48 33 91 26 7 . 5 1 . . . 100 . 26 . . 61 . . . . . . . . . . 14 23 Level 3 8 | . . . . . . . . 31 8 22 92 . 6 18 . 11 . . . 5 . 61 25 . . . . . . . . . . 8 . Level 4 12 | . . . . . . . . 19 . 47 . . . 44 100 33 100 . . 23 100 38 . . . . . . . . . . . . . Level 5 8 | . . . . . . . . . . . . . . 36 . 54 . . . 36 . . . . . . . . . . . . . . . High Security . | . . . . . . . . . . . . . . . . . . . . . . . . . . . . . . . . . . . . Max Security . | . . . . . . . . . . . . . . . . . . . . . . . . . . . . . . . . . . . . Sterilizations 2 | . . . . . . . . . . . . . . . . . . . . . . 1 . . . . . . . . 1 . . . . Peak Influence 2378 | 10 348 102 477 182 . 215 507 1354 728 1578 905 303 976 2373 1245 2241 1467 503 319 2378 1253 1124 792 . . . . 152 36 . 83 116 118 793 521 Initial 1248 | . . 102 . 172 . . 40 206 659 387 828 303 . 677 1245 797 1176 503 319 200 1248 877 590 . . . . 3 36 . . 21 64 21 390 Average 555 | 2 203 13 345 97 . 143 311 749 588 983 787 64 197 1486 1188 1667 1358 478 284 1268 1248 1006 567 . . . . 37 12 . 36 26 12 311 393 Influence Increases 19853 | 40 753 59 1008 16 . 550 1161 1148 659 1261 326 . 1417 1806 166 1504 481 4 191 2278 5 317 832 20 270 425 381 438 . . 259 215 255 1309 299 Destroy 0b10 Robot/C 9840 | . 440 . 600 . . 440 620 580 320 540 220 . 520 920 80 740 280 . 40 1020 . 180 360 20 220 200 300 240 . . 180 . 20 640 120 Destroy 0b10 Robot/NC 910 | 40 30 10 105 15 . 40 100 5 90 5 40 . 50 20 10 35 20 . 15 35 . . 80 . 5 . 10 50 . . . . 40 45 15 Destroy Leader 1450 | . 96 . 154 . . 70 164 20 118 30 40 . 134 50 22 70 40 . 14 60 . 20 102 . 30 . 30 40 . . 30 . 12 84 20 Allied During Kill 1388 | . . . . . . . . 36 46 11 . . 481 170 37 70 45 . . 232 . 104 85 . . 45 26 . . . . . . . . Successful Hack 396 | . 27 . 20 . . . 56 28 21 20 6 . 80 . 8 30 2 . 13 21 5 . 8 . . . . . . . . 6 . 24 21 Select Force Hacks 30 | . 30 . . . . . . . . . . . . . . . . . . . . . . . . . . . . . . . . . . Disable Machine 885 | . 45 . 45 . . . 60 15 15 15 . . 90 75 . 30 60 . 30 60 . . 45 . . . . 30 . . . 30 15 195 30 Anti-Garrison Action 2350 | . . . . . . . . 400 . 450 . . . 500 . 400 . . . 600 . . . . . . . . . . . . . . . Destroy Structure 1494 | . 40 49 39 1 . . 41 64 19 100 5 . 47 56 9 114 34 4 19 250 . 13 152 . . . . 48 . . 34 14 18 291 33 Partial Spotted 150 | . 15 . . . . . . . . 30 15 . . . . . . . . . . . . . . . . 15 . . . . 45 . 30 Lose Combat Pursuer 960 | . 30 . 45 . . . 120 . 30 60 . . 15 15 . 15 . . 60 . . . . . 15 180 15 15 . . 15 165 105 30 30 Influence Decreases 19434 | 40 490 322 566 458 . 444 949 112 1417 279 1036 868 449 401 1400 402 1283 986 362 186 1130 446 1200 696 307 165 678 340 104 . 220 139 332 653 574 Entered New Map 9957 | . . 161 . 270 . . 66 112 695 209 750 565 . 291 1128 342 1065 936 138 86 1130 376 534 280 16 43 303 3 68 . . 18 51 17 304 Time Decay 6904 | 40 470 161 536 178 . 404 563 . 392 . 286 303 269 . 262 . 198 40 214 . . . 416 416 231 62 256 231 36 . . 73 281 486 100 Lost Part 1253 | . 20 . 30 10 . 40 20 . 10 30 . . . 10 10 40 . 10 10 70 . 10 60 . 60 40 79 106 . . 220 48 . 150 170 Lost Ally 570 | . . . . . . . . . 20 40 . . 180 100 . 20 20 . . 30 . 60 40 . . 20 40 . . . . . . . . Purge Threat 750 | . . . . . . . 300 . 300 . . . . . . . . . . . . . 150 . . . . . . . . . . . . Squads Dispatched 65 | . 4 . 4 . . . 3 . 4 . 3 . 7 . 3 . 5 . 2 . . 1 7 . . . . 4 . . 2 2 . 13 1 Investigation 15 | . 3 . . . . . . . 1 . . . 2 . 2 . 2 . 1 . . . 1 . . . . . . . . 1 . 2 . Extermination 12 | . . . . . . . . . . . 1 . 1 . 1 . . . . . . . 1 . . . . 2 . . . 1 . 5 . Reinforcement 25 | . 1 . 2 . . . 3 . 2 . 1 . 2 . . . 1 . . . . 1 4 . . . . 2 . . 2 . . 3 1 Assault 6 | . . . 2 . . . . . 1 . 1 . . . . . 2 . . . . . . . . . . . . . . . . . . Garrison 7 | . . . . . . . . . . . . . 2 . . . . . 1 . . . 1 . . . . . . . . . . 3 . Intercept . | . . . . . . . . . . . . . . . . . . . . . . . . . . . . . . . . . . . . Searches Triggered . | . . . . . . . . . . . . . . . . . . . . . . . . . . . . . . . . . . . . Construction Impeded 4 | . . . . . . . . . . . . . . . . . 1 . . . . . 2 . . . . 1 . . . . . . . Haulers Reinforced 1 | . . . . . . . . . . . . . . . . . . . . . . . 1 . . . . . . . . . . . . Active Scanning Responses . | . . . . . . . . . . . . . . . . . . . . . . . . . . . . . . . . . . . . Cargo Convoy Interrupts . | . . . . . . . . . . . . . . . . . . . . . . . . . . . . . . . . . . . . Stealth | -11 -10 -10 -9 -9 -9 -8 -8 -8 -8 -8 -7 -7 -7 -7 -7 -7 -6 -6 -6 -6 -6 -6 -5 -5 -5 -5 -4 -4 -4 -4 -4 -3 -2 -2 -2 --------- Run | Yrd Mat Min Mat Min Exi Min Mat Gar Mat Gar Fac Was Fac Gar Fac Gar Fac Was Fac Gar Fac DSF Fac Upp Upp War Pro Fac Was Fac DSF Res Res Tes Frg Distress Signals 26 | . 3 . 4 . . . 3 . 2 . . . 1 1 . . . . 1 . . . . . . 1 . . . . . . 7 1 2 Communications Jammed . | . . . . . . . . . . . . . . . . . . . . . . . . . . . . . . . . . . . . Distress Signals . | . . . . . . . . . . . . . . . . . . . . . . . . . . . . . . . . . . . . Times Spotted 679 | . 34 7 54 1 . 20 59 25 22 23 15 . 27 43 6 36 13 6 8 53 . 8 18 1 12 39 15 15 6 . 17 17 21 38 20 Peak Tracking Total 13 | . 7 2 7 1 . 4 7 5 4 6 4 . 6 5 3 4 4 6 4 8 . 4 5 1 5 13 6 4 6 . 7 12 5 4 13 Tactical Retreats 36 | . 1 1 2 . . . 6 . 1 1 . . 1 1 . 1 . . 3 . . . . . 1 3 1 1 . . 1 4 3 2 2 Traps | -11 -10 -10 -9 -9 -9 -8 -8 -8 -8 -8 -7 -7 -7 -7 -7 -7 -6 -6 -6 -6 -6 -6 -5 -5 -5 -5 -4 -4 -4 -4 -4 -3 -2 -2 -2 ------- Run | Yrd Mat Min Mat Min Exi Min Mat Gar Mat Gar Fac Was Fac Gar Fac Gar Fac Was Fac Gar Fac DSF Fac Upp Upp War Pro Fac Was Fac DSF Res Res Tes Frg Traps Triggered 62 | . 1 . 2 . . . 1 6 . 9 1 . . 14 2 12 1 . 1 2 . 1 2 . . . . 1 . . . . 1 5 . Indirectly . | . . . . . . . . . . . . . . . . . . . . . . . . . . . . . . . . . . . . Trap Hack Attempts 20 | . . 15 . . . . . . . . . . . . . . 5 . . . . . . . . . . . . . . . . . . Triggered . | . . . . . . . . . . . . . . . . . . . . . . . . . . . . . . . . . . . . Disarmed . | . . . . . . . . . . . . . . . . . . . . . . . . . . . . . . . . . . . . Reprogrammed 6 | . . 5 . . . . . . . . . . . . . . 1 . . . . . . . . . . . . . . . . . . Reused . | . . . . . . . . . . . . . . . . . . . . . . . . . . . . . . . . . . . . Traps Extracted 5 | . . 5 . . . . . . . . . . . . . . . . . . . . . . . . . . . . . . . . . Installed . | . . . . . . . . . . . . . . . . . . . . . . . . . . . . . . . . . . . . Triggered . | . . . . . . . . . . . . . . . . . . . . . . . . . . . . . . . . . . . . Most Traps Carried 1 | . . 1 1 1 1 1 1 . . . . . . . . . . . . . . . . . . . . . . . . . . . . Machines | -11 -10 -10 -9 -9 -9 -8 -8 -8 -8 -8 -7 -7 -7 -7 -7 -7 -6 -6 -6 -6 -6 -6 -5 -5 -5 -5 -4 -4 -4 -4 -4 -3 -2 -2 -2 ---------- Run | Yrd Mat Min Mat Min Exi Min Mat Gar Mat Gar Fac Was Fac Gar Fac Gar Fac Was Fac Gar Fac DSF Fac Upp Upp War Pro Fac Was Fac DSF Res Res Tes Frg Machines Disabled 90 | . 3 . 3 . . . 4 7 1 6 . . 6 10 . 7 4 . 2 11 . . 3 . . 1 2 2 . . . 2 1 13 2 Max in Single Turn 4 | . 1 . 2 . . . 1 1 1 1 . . 4 1 . 1 1 . 1 1 . . 1 . . 1 1 1 . . . 2 1 2 1 Garrison Access 4 | . . . . . . . . . . . . . . . . . . . . . . . 1 . . . . . . . . . 3 . . Garrison Relay 24 | . . . . . . . . 6 . 5 . . . 4 . 4 . . . 5 . . . . . . . . . . . . . . . Phase Generator 2 | . . . . . . . . . . . . . . 1 . . . . . 1 . . . . . . . . . . . . . . . Machines Repaired . | . . . . . . . . . . . . . . . . . . . . . . . . . . . . . . . . . . . . Machines Dismantled 7 | . . . . . . . . . . . . . 1 2 . . . . 1 1 . . . . . 1 . . . . . . . 1 . Machines Sabotaged . | . . . . . . . . . . . . . . . . . . . . . . . . . . . . . . . . . . . . Overloaded Fab Kills . | . . . . . . . . . . . . . . . . . . . . . . . . . . . . . . . . . . . . Hacking | -11 -10 -10 -9 -9 -9 -8 -8 -8 -8 -8 -7 -7 -7 -7 -7 -7 -6 -6 -6 -6 -6 -6 -5 -5 -5 -5 -4 -4 -4 -4 -4 -3 -2 -2 -2 --------- Run | Yrd Mat Min Mat Min Exi Min Mat Gar Mat Gar Fac Was Fac Gar Fac Gar Fac Was Fac Gar Fac DSF Fac Upp Upp War Pro Fac Was Fac DSF Res Res Tes Frg Machines Accessed 103 | . 9 1 9 . 1 1 12 4 11 3 3 . 7 2 2 3 2 . 5 4 1 . 4 . . 3 . 2 . 1 . 2 1 7 3 Terminals 68 | . 7 . 5 . . 1 7 4 8 3 2 . 4 2 . 3 . . 3 4 1 . 2 . . . . 1 . 1 . 1 1 5 3 Fabricators 4 | . . . . . . . . . . . . . 1 . . . 1 . 1 . . . . . . . . 1 . . . . . . . Repair Stations 10 | . 1 . 2 . . . 2 . 2 . 1 . . . . . . . . . . . . . . . . . . . . 1 . 1 . Recycling Units 2 | . 1 . 1 . . . . . . . . . . . . . . . . . . . . . . . . . . . . . . . . Scanalyzers 6 | . . . 1 . . . 2 . . . . . . . 1 . 1 . . . . . 1 . . . . . . . . . . . . Garrison Access 8 | . . . . . . . 1 . 1 . . . 2 . 1 . . . 1 . . . 1 . . . . . . . . . . 1 . Total Hacks 266 | . 29 1 28 . 1 2 41 10 27 7 6 . 17 5 9 7 7 . 12 11 1 . 12 . . 6 . 3 . 1 . 4 1 13 5 Successful 123 | . 17 1 18 . 1 . 25 2 9 2 2 . 6 . 3 2 3 . 5 2 1 . 6 . . 6 . 2 . 1 . 2 1 5 1 Failed 143 | . 12 . 10 . . 2 16 8 18 5 4 . 11 5 6 5 4 . 7 9 . . 6 . . . . 1 . . . 2 . 8 4 Catastrophic 27 | . 2 . 1 . . 1 3 . 2 2 2 . . 1 1 3 . . 2 3 . . 2 . . . . . . . . 1 . 1 . Database Lockouts . | . . . . . . . . . . . . . . . . . . . . . . . . . . . . . . . . . . . . Manual 61 | . 13 . 4 . . 2 16 . 14 . . . 2 . 2 . . . 4 . . . 2 . . . . . . . . . . 2 . Terminals 162 | . 22 . 12 . . 2 23 10 21 7 4 . 9 5 . 7 . . 5 11 1 . 5 . . . . 1 . 1 . 1 1 9 5 Fabricators 11 | . . . . . . . . . . . . . 2 . . . 3 . 4 . . . . . . . . 2 . . . . . . . Repair Stations 26 | . 4 . 7 . . . 6 . 3 . 2 . . . . . . . . . . . . . . . . . . . . 3 . 1 . Recycling Units 7 | . 3 . 4 . . . . . . . . . . . . . . . . . . . . . . . . . . . . . . . . Scanalyzers 27 | . . . 5 . . . 9 . . . . . . . 6 . 4 . . . . . 3 . . . . . . . . . . . . Garrison Access 25 | . . . . . . . 3 . 3 . . . 6 . 3 . . . 3 . . . 4 . . . . . . . . . . 3 . Terminal Hacks 56 | . 7 1 4 . 1 . 7 2 6 2 . . 3 . . 2 . . 1 2 1 . 3 . . 6 . 1 . 1 . 1 1 3 1 Record 7 | . . . . . 1 . . . . . . . . . . . . . . . . . . . . 5 . . . . . . . 1 . Part Schematic 1 | . . . . . . . 1 . . . . . . . . . . . . . . . . . . . . . . . . . . . . Robot Schematic 1 | . 1 . . . . . . . . . . . . . . . . . . . . . . . . . . . . . . . . . . Prototype ID Bank 11 | . 3 . 3 . . . 3 . 1 . . . . . . . . . 1 . . . . . . . . . . . . . . . . Open Door 4 | . . 1 . . . . . . . 1 . . . . . . . . . 1 . . . . . 1 . . . . . . . . . Open DSF 5 | . . . . . . . . . . . . . . . . . . . . . 1 . . . . . . 1 . 1 . 1 1 . . Branch Access Points 2 | . . . . . . . . . . . . . 1 . . . . . . . . . 1 . . . . . . . . . . . . Emergency Access Points 4 | . . . . . . . . . . 1 . . 1 . . 1 . . . 1 . . . . . . . . . . . . . . . Terminal Index 1 | . . . . . . . . . 1 . . . . . . . . . . . . . . . . . . . . . . . . . . Alert Level 2 | . . . . . . . 1 . . . . . . . . . . . . . . . 1 . . . . . . . . . . . . Unreport Threat 5 | . . . . . . . 2 . 2 . . . . . . . . . . . . . 1 . . . . . . . . . . . . Locate Traps 6 | . 3 . 1 . . . . . . . . . 1 . . . . . . . . . . . . . . . . . . . . . 1 Maintenance Status 1 | . . . . . . . . . . . . . . . . . . . . . . . . . . . . . . . . . . 1 . Hauler Manifests 1 | . . . . . . . . . 1 . . . . . . . . . . . . . . . . . . . . . . . . . . Registered Components 1 | . . . . . . . . . 1 . . . . . . . . . . . . . . . . . . . . . . . . . . Zone Layout 1 | . . . . . . . . . . . . . . . . . . . . . . . . . . . . . . . . . . 1 . Garrison Registry 1 | . . . . . . . . 1 . . . . . . . . . . . . . . . . . . . . . . . . . . . Patrol Navigation 1 | . . . . . . . . 1 . . . . . . . . . . . . . . . . . . . . . . . . . . . Security Stations 1 | . . . . . . . . . . . . . . . . 1 . . . . . . . . . . . . . . . . . . . Fabricator Hacks 5 | . . . . . . . . . . . . . 1 . . . 1 . 2 . . . . . . . . 1 . . . . . . . Network Status 3 | . . . . . . . . . . . . . 1 . . . 1 . . . . . . . . . . 1 . . . . . . . Load Schematic 1 | . . . . . . . . . . . . . . . . . . . 1 . . . . . . . . . . . . . . . . Build 1 | . . . . . . . . . . . . . . . . . . . 1 . . . . . . . . . . . . . . . . Repair Station Hacks 15 | . 2 . 5 . . . 3 . 2 . 2 . . . . . . . . . . . . . . . . . . . . 1 . . . Scan Component 9 | . 2 . 3 . . . 2 . 1 . 1 . . . . . . . . . . . . . . . . . . . . . . . . Repair 5 | . . . 2 . . . 1 . 1 . 1 . . . . . . . . . . . . . . . . . . . . . . . . Refit 1 | . . . . . . . . . . . . . . . . . . . . . . . . . . . . . . . . 1 . . . Recycling Unit Hacks 1 | . . . 1 . . . . . . . . . . . . . . . . . . . . . . . . . . . . . . . . Retrieve Components 1 | . . . 1 . . . . . . . . . . . . . . . . . . . . . . . . . . . . . . . . Scanalyzer 19 | . . . 4 . . . 9 . . . . . . . 2 . 2 . . . . . 2 . . . . . . . . . . . . Insert Component 10 | . . . 1 . . . 4 . . . . . . . 2 . 1 . . . . . 2 . . . . . . . . . . . . Analyze 9 | . . . 3 . . . 5 . . . . . . . . . 1 . . . . . . . . . . . . . . . . . . Garrison Access Hacks 7 | . . . . . . . 1 . 1 . . . 1 . 1 . . . 1 . . . 1 . . . . . . . . . . 1 . Unlock Access 6 | . . . . . . . 1 . 1 . . . 1 . 1 . . . 1 . . . . . . . . . . . . . . 1 . Seal Access 1 | . . . . . . . . . . . . . . . . . . . . . . . 1 . . . . . . . . . . . . Unauthorized Hacks 20 | . 8 . 4 . . . 5 . . . . . 1 . . . . . 1 . . . . . . . . . . . . . . 1 . Terminals 16 | . 7 . 4 . . . 5 . . . . . . . . . . . . . . . . . . . . . . . . . . . . Operators 1 | . 1 . . . . . . . . . . . . . . . . . . . . . . . . . . . . . . . . . . Skim 15 | . 6 . 4 . . . 5 . . . . . . . . . . . . . . . . . . . . . . . . . . . . Fabricators 1 | . . . . . . . . . . . . . 1 . . . . . . . . . . . . . . . . . . . . . . Haulers 1 | . . . . . . . . . . . . . 1 . . . . . . . . . . . . . . . . . . . . . . Repair Stations 1 | . . . . . . . . . . . . . . . . . . . . . . . . . . . . . . . . . . 1 . Patch 1 | . . . . . . . . . . . . . . . . . . . . . . . . . . . . . . . . . . 1 . Recycling Units 1 | . 1 . . . . . . . . . . . . . . . . . . . . . . . . . . . . . . . . . . Tunnel 1 | . 1 . . . . . . . . . . . . . . . . . . . . . . . . . . . . . . . . . . Scanalyzers . | . . . . . . . . . . . . . . . . . . . . . . . . . . . . . . . . . . . . Garrison Access 1 | . . . . . . . . . . . . . . . . . . . 1 . . . . . . . . . . . . . . . . Reprogram 1 | . . . . . . . . . . . . . . . . . . . 1 . . . . . . . . . . . . . . . . Data Cores Recovered 8 | . 2 . 1 . . . . . 2 . 2 . . . . . . . . . . . . . . . . . . . . . . 1 . Used 3 | . . . . . . . . . 2 . 1 . . . . . . . . . . . . . . . . . . . . . . . . Hacking Detections 87 | . 9 . 8 . . 1 12 4 11 3 2 . 6 2 2 3 2 . 5 4 . . 3 . . . . 1 . . . 1 1 4 3 Full Trace Events 21 | . 1 . 1 . . 1 . 2 1 2 . . 1 1 2 2 2 . . 2 . . 1 . . . . . . . . 1 . 1 . Feedback Events 1 | . . . . . . . . . . . . . . . 1 . . . . . . . . . . . . . . . . . . . . Corruption 1 | . . . . . . . . . . . . . . . 1 . . . . . . . . . . . . . . . . . . . . Feedback Blocked . | . . . . . . . . . . . . . . . . . . . . . . . . . . . . . . . . . . . . Robot Schematics Acquired 5 | . 1 . . . . . . . . . . . . . . . . . . . . . . . . . . . . . . . . 4 . Robots Built 1 | . . . . . . . . . . . . . . . . . . . 1 . . . . . . . . . . . . . . . . Authchips 1 | . . . . . . . . . . . . . . . . . . . 1 . . . . . . . . . . . . . . . . Time 27 | . . . . . . . . . . . . . . . . . . . 27 . . . . . . . . . . . . . . . . Total Robot Build Rating 1 | . . . . . . . . . . . . . . . . . . . 1 . . . . . . . . . . . . . . . . Part Schematics Acquired 11 | . . . 1 . . . 5 . . . . . . . . . . . . . . . . . . . . . . . . . . 5 . Parts Built . | . . . . . . . . . . . . . . . . . . . . . . . . . . . . . . . . . . . . Authchips . | . . . . . . . . . . . . . . . . . . . . . . . . . . . . . . . . . . . . Time . | . . . . . . . . . . . . . . . . . . . . . . . . . . . . . . . . . . . . Total Part Build Rating . | . . . . . . . . . . . . . . . . . . . . . . . . . . . . . . . . . . . . Parts Repaired 5 | . . . 2 . . . 1 . 1 . 1 . . . . . . . . . . . . . . . . . . . . . . . . Time 278 | . . . 100 . . . 51 . 38 . 89 . . . . . . . . . . . . . . . . . . . . . . . . Parts Recycled . | . . . . . . . . . . . . . . . . . . . . . . . . . . . . . . . . . . . . Recycled Matter . | . . . . . . . . . . . . . . . . . . . . . . . . . . . . . . . . . . . . Retrieved Matter . | . . . . . . . . . . . . . . . . . . . . . . . . . . . . . . . . . . . . Retrieved Components 10 | . . . 10 . . . . . . . . . . . . . . . . . . . . . . . . . . . . . . . . Parts Scanalyzed 8 | . . . 1 . . . 4 . . . . . . . 1 . 1 . . . . . 1 . . . . . . . . . . . . Part Schematics Acquired 5 | . . . 1 . . . 4 . . . . . . . . . . . . . . . . . . . . . . . . . . . . Parts Damaged 1 | . . . . . . . . . . . . . . . 1 . . . . . . . . . . . . . . . . . . . . Bothacking | -11 -10 -10 -9 -9 -9 -8 -8 -8 -8 -8 -7 -7 -7 -7 -7 -7 -6 -6 -6 -6 -6 -6 -5 -5 -5 -5 -4 -4 -4 -4 -4 -3 -2 -2 -2 ------------ Run | Yrd Mat Min Mat Min Exi Min Mat Gar Mat Gar Fac Was Fac Gar Fac Gar Fac Was Fac Gar Fac DSF Fac Upp Upp War Pro Fac Was Fac DSF Res Res Tes Frg Used RIF Installer . | . . . . . . . . . . . . . . . . . . . . . . . . . . . . . . . . . . . . Robots Hacked 9 | . . . . . . . . 1 . . 1 . . . . . 1 . . . . . . . . 4 . 1 . . . . 1 . . Non-combat 6 | . . . . . . . . . . . 1 . . . . . 1 . . . . . . . . 2 . 1 . . . . 1 . . Combat 3 | . . . . . . . . 1 . . . . . . . . . . . . . . . . . 2 . . . . . . . . . Robot Hacks Applied 11 | . . . . . . . . 1 . . 2 . . . . . 1 . . . . . . . . 4 . 1 . . . . 2 . . parse_system 7 | . . . . . . . . 1 . . 1 . . . . . . . . . . . . . . 4 . . . . . . 1 . . find_chute 3 | . . . . . . . . . . . 1 . . . . . 1 . . . . . . . . . . 1 . . . . . . . check_alert 1 | . . . . . . . . . . . . . . . . . . . . . . . . . . . . . . . . . 1 . . Relay Couplers Released 97 | . . . . . . . . 23 . 19 . . . 18 . 15 . . . 18 . . . . . . . . . . . . 4 . . Machine Destruction 97 | . . . . . . . . 23 . 19 . . . 18 . 15 . . . 18 . . . . . . . . . . . . 4 . . Fabnet Peak Effective % . | . . . . . . . . . . . . . . . . . . . . . . . . . . . . . . . . . . . . Robots Rewired 25 | . . . . . . . . . . . . . . 9 . 3 . . . 7 . . 1 . . 5 . . . . . . . . . Allies Hacked 2 | . . . . . . . . . . . . . 1 . . . . . . . . . 1 . . . . . . . . . . . . Hacks Repelled . | . . . . . . . . . . . . . . . . . . . . . . . . . . . . . . . . . . . . Allies | -11 -10 -10 -9 -9 -9 -8 -8 -8 -8 -8 -7 -7 -7 -7 -7 -7 -6 -6 -6 -6 -6 -6 -5 -5 -5 -5 -4 -4 -4 -4 -4 -3 -2 -2 -2 -------- Run | Yrd Mat Min Mat Min Exi Min Mat Gar Mat Gar Fac Was Fac Gar Fac Gar Fac Was Fac Gar Fac DSF Fac Upp Upp War Pro Fac Was Fac DSF Res Res Tes Frg Total Allies 55 | . . . . . . . . 1 . 2 . 20 . 13 . 3 . . 3 7 . . 1 . . 5 . . . . . . . . . Largest Group 20 | . . . . . . . . 1 1 2 . 20 19 9 8 4 3 . 1 6 6 6 3 . . 5 2 . . . . . . . . Highest-Rated Group 469 | . . . . . . . . 149 149 62 . 469 434 321 321 183 90 . 14 429 429 429 221 . . 264 84 . . . . . . . . Highest-Rated Ally 149 | . . . . . . . . 149 149 31 . 35 31 80 77 77 39 . 14 148 148 148 148 . . 64 43 . . . . . . . . Initial Warlord ECA Mod 1029 | . . . . . . . . . 8 8 16 16 16 16 25 25 32 32 32 32 42 42 51 51 51 51 50 50 50 50 50 59 58 58 58 Total Orders 23 | . . . . . . . . . . . . . . 1 . . . . 1 15 1 1 . . . 4 . . . . . . . . . STAY 7 | . . . . . . . . . . . . . . . . . . . . 4 . . . . . 3 . . . . . . . . . FOLLOW 7 | . . . . . . . . . . . . . . . . . . . . 5 1 . . . . 1 . . . . . . . . . GUARD 2 | . . . . . . . . . . . . . . 1 . . . . . 1 . . . . . . . . . . . . . . . AID 7 | . . . . . . . . . . . . . . . . . . . 1 5 . 1 . . . . . . . . . . . . . Ally Attacks 506 | . . . . . . . . 14 20 14 . . 155 65 17 12 18 . 2 49 . 42 40 . . 27 31 . . . . . . . . Total Damage 10904 | . . . . . . . . 763 942 135 . . 2182 1437 331 358 340 . . 1142 . 738 1040 . . 950 546 . . . . . . . . Kills 96 | . . . . . . . . 7 14 1 . . 21 13 4 6 . . . 13 . 4 6 . . 4 3 . . . . . . . . Allies Corrupted 3 | . . . . . . . . . . . . . . . 1 1 . . . . . . . . . 1 . . . . . . . . . Allies Melted 3 | . . . . . . . . . . . . . . . . . . . . . . . . . . . . . . . . . 3 . . Intel | -11 -10 -10 -9 -9 -9 -8 -8 -8 -8 -8 -7 -7 -7 -7 -7 -7 -6 -6 -6 -6 -6 -6 -5 -5 -5 -5 -4 -4 -4 -4 -4 -3 -2 -2 -2 ------- Run | Yrd Mat Min Mat Min Exi Min Mat Gar Mat Gar Fac Was Fac Gar Fac Gar Fac Was Fac Gar Fac DSF Fac Upp Upp War Pro Fac Was Fac DSF Res Res Tes Frg Active Infowar (turns) 14014 | . . . . . . . . 16 . . . . 683 1908 561 408 . . . . . . 5 684 1175 326 1708 1178 71 25 64 278 3147 1636 141 Optics 3277 | . . . . . . . . . . . . . . . . . . . . . . . . . . . . . . . . . 1500 1636 141 Sensors 3 | . . . . . . . . . . . . . . . . . . . . . . . 3 . . . . . . . . . . . . IFF 5231 | . . . . . . . . . . . . . . . . . . . . . . . 2 684 1173 326 1708 1178 71 25 64 . . . . Terrain 2 | . . . . . . . . . . . . . . . . . . . . . . . . . 2 . . . . . . . . . . Structural 398 | . . . . . . . . . . . . . . . . . . . . . . . . . . . . 398 . . . . . . . Seismic 16 | . . . . . . . . 16 . . . . . . . . . . . . . . . . . . . . . . . . . . . Machine Analysis 5626 | . . . . . . . . . . . . . 683 1908 561 408 . . . . . . . . . . . . . . . 278 1788 . . Jamming 97 | . . . . . . . . . . . . . . . . . . . . . . . . . . . . . . . . . . 2 95 Robot Analysis Total . | . . . . . . . . . . . . . . . . . . . . . . . . . . . . . . . . . . . . Derelict Logs Recovered 7 | . . 2 . 1 . . . . . . . . . . . . . . . . . . . . 2 . 2 . . . . . . . . Drone Launches . | . . . . . . . . . . . . . . . . . . . . . . . . . . . . . . . . . . . . Drone Recoveries . | . . . . . . . . . . . . . . . . . . . . . . . . . . . . . . . . . . . . Exploration | -11 -10 -10 -9 -9 -9 -8 -8 -8 -8 -8 -7 -7 -7 -7 -7 -7 -6 -6 -6 -6 -6 -6 -5 -5 -5 -5 -4 -4 -4 -4 -4 -3 -2 -2 -2 ------------- Run | Yrd Mat Min Mat Min Exi Min Mat Gar Mat Gar Fac Was Fac Gar Fac Gar Fac Was Fac Gar Fac DSF Fac Upp Upp War Pro Fac Was Fac DSF Res Res Tes Frg Turns Passed 35722 | 201 1296 1027 1638 371 505 978 2244 1188 934 1284 627 1524 686 1908 561 1684 410 99 453 2061 12 169 1016 1016 1613 1280 1999 1203 137 27 298 278 3147 1636 212 Spaces Moved 22295 | 129 1054 591 1086 306 498 742 1080 802 637 814 373 426 532 1022 436 946 223 79 243 1235 11 95 577 780 1103 676 1084 641 106 17 110 365 2364 945 167 Core 740 | 4 . . . . . . . . . . . 120 . . . . . . . . . . . . . . . . . . 27 325 161 . 103 Treads . | . . . . . . . . . . . . . . . . . . . . . . . . . . . . . . . . . . . . Legs . | . . . . . . . . . . . . . . . . . . . . . . . . . . . . . . . . . . . . Wheels 21555 | 125 1054 591 1086 306 498 742 1080 802 637 814 373 306 532 1022 436 946 223 79 243 1235 11 95 577 780 1103 676 1084 641 106 17 83 40 2203 945 64 Hover . | . . . . . . . . . . . . . . . . . . . . . . . . . . . . . . . . . . . . Flight . | . . . . . . . . . . . . . . . . . . . . . . . . . . . . . . . . . . . . Fastest Speed 50 | 50 80 95 95 95 100 100 110 110 110 105 93 95 95 98 120 120 105 105 120 90 105 105 115 127 117 145 135 125 115 130 50 50 50 122 50 Average Speed 120 | 88 91 95 104 97 100 109 110 110 110 105 105 307 98 113 120 125 120 105 120 106 105 121 120 127 132 163 163 140 122 130 115 57 120 126 84 Slowest Speed 850 | 90 107 95 130 135 100 125 110 110 140 140 108 850 101 120 120 135 135 120 120 135 105 135 170 143 160 250 260 275 130 130 205 200 200 144 140 Overloaded Moves . | . . . . . . . . . . . . . . . . . . . . . . . . . . . . . . . . . . . . Propulsion Burnouts . | . . . . . . . . . . . . . . . . . . . . . . . . . . . . . . . . . . . . Robots Hopped . | . . . . . . . . . . . . . . . . . . . . . . . . . . . . . . . . . . . . Potential Cave-ins 4 | . . . . . . . . . . . . . . . . . . . . . . . . . . . . . . . . 2 . 2 . Cave-ins Triggered . | . . . . . . . . . . . . . . . . . . . . . . . . . . . . . . . . . . . . Exploration Rate (%) 64 | 5 97 97 79 69 88 95 86 90 58 93 14 89 19 89 13 96 9 78 9 96 . 78 16 84 96 90 84 12 67 . 85 12 84 91 12 Regions Visited 35 Branch Regions 10 Pre-discovered Areas 4 | . 2 1 . . . . . . . . . . . . . . . . . . . . . 1 . . . . . . . . . . . Known Exits Taken 14 | . 1 1 1 . . 1 1 . 1 . . . 1 . 1 . . . 1 . 1 . 1 . 1 . . . . 1 . . 1 . . Unknown Exits Taken 8 | 1 . . . 1 1 . . . . . . . . . . . . . . . . . . 1 . 1 1 . . . . 1 . 1 . Scrap Searched 12 | . . 2 . 1 . 1 . . . . . . . . . . . . . . . . . 2 2 . 4 . . . . . . . . Spaces Dug 135 | . 13 29 . 1 . . . 1 . 16 2 . 1 10 . 8 3 2 6 15 . . 2 1 1 . 5 6 . . . 6 2 4 1 Terrain Destroyed 995 | . 36 55 37 1 . . 44 1 7 16 2 . 47 22 6 73 31 5 20 94 . . 43 5 60 21 129 23 . . 27 10 6 164 10 Melee 28 | . . 1 . 1 . . . 1 . 6 . . . 9 . . . . . 2 . . . . . . . 6 . . . . . 1 1 Projectile 630 | . 5 1 . . . . 24 . 7 6 2 . 10 13 6 62 31 5 20 42 . . 43 5 60 21 47 17 . . 27 10 5 160 1 AOE 333 | . 31 53 37 . . . 20 . . 4 . . 37 . . 11 . . . 50 . . . . . . 82 . . . . . . . 8 Terrain Rammed . | . . . . . . . . . . . . . . . . . . . . . . . . . . . . . . . . . . . . Walls Destroyed . | . . . . . . . . . . . . . . . . . . . . . . . . . . . . . . . . . . . . Machines Disabled . | . . . . . . . . . . . . . . . . . . . . . . . . . . . . . . . . . . . . Actions | -11 -10 -10 -9 -9 -9 -8 -8 -8 -8 -8 -7 -7 -7 -7 -7 -7 -6 -6 -6 -6 -6 -6 -5 -5 -5 -5 -4 -4 -4 -4 -4 -3 -2 -2 -2 --------- Run | Yrd Mat Min Mat Min Exi Min Mat Gar Mat Gar Fac Was Fac Gar Fac Gar Fac Was Fac Gar Fac DSF Fac Upp Upp War Pro Fac Was Fac DSF Res Res Tes Frg Total 28264 | 179 1279 1012 1415 347 505 818 1969 977 795 1066 548 596 614 1484 459 1248 286 87 337 1647 11 129 765 796 1182 808 1261 824 115 21 214 414 2646 1205 205 Wait 2352 | 1 93 346 166 15 . 11 749 17 63 34 104 126 23 86 9 20 . . 47 37 . 5 10 1 22 22 122 55 . . 18 15 36 98 1 Move 22267 | 128 1053 590 1085 305 497 741 1080 801 637 813 373 425 532 1021 436 944 223 78 242 1234 10 94 576 779 1102 675 1083 641 105 17 109 364 2363 944 167 Hop . | . . . . . . . . . . . . . . . . . . . . . . . . . . . . . . . . . . . . Pick Up 408 | 9 28 6 21 3 . 9 18 4 13 8 10 4 3 16 2 18 6 . 6 41 . 6 32 2 8 13 9 15 2 . 17 2 62 14 1 Fast Attach 134 | 6 1 . 2 . 4 2 7 1 2 2 3 . 3 3 . 3 . 1 . 13 . . 1 1 . 8 3 14 . . 10 2 25 14 3 Attach 168 | . 4 . 7 2 . 3 5 . 2 4 2 1 1 1 . 6 4 1 2 22 . 1 12 . 8 8 8 12 1 4 11 6 9 11 10 Detach 35 | . . . . . . . . . . 1 . . . . . 1 . 2 . 2 . . 1 . 1 2 2 2 2 . 3 6 7 . 3 Swap 569 | 1 21 18 30 5 . 4 24 25 15 36 12 14 14 32 4 35 17 . 7 56 1 2 31 8 16 19 4 14 1 . 5 3 63 31 1 Drop 423 | 1 25 10 27 4 4 10 23 6 21 9 12 6 6 19 3 28 6 1 3 37 . 2 29 2 2 27 2 8 4 . 5 1 59 20 1 Fire 1219 | 33 53 26 77 12 . 38 63 74 42 72 28 10 26 92 5 68 24 4 24 143 . 10 55 3 23 10 28 35 . . 35 14 19 59 14 Melee 214 | . . 1 . 1 . . . 9 . 31 4 10 . 33 . 37 1 . . 34 . . 1 . . 16 . 28 . . . . 2 2 4 Ram 7 | . 1 . . . . . . . . . . . . . . . . . . . . . 1 . . . . . . . 1 1 1 2 . Kick . | . . . . . . . . . . . . . . . . . . . . . . . . . . . . . . . . . . . . Crush . | . . . . . . . . . . . . . . . . . . . . . . . . . . . . . . . . . . . . Escape Stasis 315 | . . . . . . . . 40 . 56 . . . 92 . 87 . . . 16 . 8 16 . . . . . . . . . . . . Rewire 75 | . . . . . . . . . . . . . . 72 . 1 . . . 1 . 1 . . . . . . . . . . . . . Trap 20 | . . 15 . . . . . . . . . . . . . . 5 . . . . . . . . . . . . . . . . . . Miscellaneous 58 | . . . . . . . . . . . . . 6 17 . . . . 6 11 . . . . . 8 . . . . . . . 10 . Route ------- -11/Scrapyard -10/Materials (discovered 6 exits: *Mat x3 / *Min x2 / *Sub) -10/Mines (discovered 2 exits: *Mat x2) -9/Materials (discovered 5 exits: *Mat x3 / *Min x2) -9/Mines (discovered 4 exits: *Mat x2 / *Exi / [*Zio]) -9/Exiles (discovered 2 exits: *Min x2) -8/Mines (discovered 2 exits: *Mat x2) -8/Materials (discovered 5 exits: *Fac x3 / *Sto / Gar) -8/Garrison (discovered 3 exits: *Mat x3) -8/Materials (discovered 3 exits: *Fac / *Sto / Gar) -8/Garrison (discovered 3 exits: *Fac x3) -7/Factory (discovered 3 exits: Fac x2 / Low) -7/Waste -7/Factory (discovered 3 exits: Low x2 / Gar) -7/Garrison (discovered 3 exits: *Fac x3) -7/Factory (discovered 4 exits: *Fac / *Low x2 / Gar) -7/Garrison (discovered 3 exits: *Fac x3) -6/Factory -6/Waste -6/Factory -6/Garrison (discovered 4 exits: *Fac x3 / *Fac) -6/Factory -6/DSF -5/Factory (discovered 2 exits: *Upp x2) -5/Upper Caves (discovered 2 exits: [*Upp] / *War) -5/Upper Caves -5/Warlord -4/Proximity Caves -4/Factory (discovered 4 exits: *Res x2 / Ext x2) -4/Waste -4/Factory -4/DSF -3/Research (discovered 3 exits: *Res / Arm / Qua) -2/Research (discovered 3 exits: [*Acc] / *Tes x2) -2/Testing (discovered 4 exits: [*Acc] / [*Sec] / Gar / *Frg) -2/Protoforge History --------- Turn | Location | Event 19 | -11/Scrapyard | Discovered new exit (range 15) 202 | -11/Scrapyard | Entered Materials 284 | -10/Materials | Discovered new exit (range 7) 315 | -10/Materials | Build established: Mutant 328 | -10/Materials | Discovered new exit (range 15) 478 | -10/Materials | Discovered new exit (range 4) 702 | -10/Materials | Derelicts attacked the area 773 | -10/Materials | Learned Storage trap positions 789 | -10/Materials | Discovered new exit (range 7) 871 | -10/Materials | Identified exit to Materials 905 | -10/Materials | Identified exit to Subcaves 941 | -10/Materials | Learned Storage emergency access door positions 966 | -10/Materials | Learned location of 3 exits from Materials 999 | -10/Materials | Identified exit to Mines 1498 | -10/Materials | Entered Mines 1625 | -10/Mines | Met a Derelict who couldn't figure out how to use a Trap Extractor 1775 | -10/Mines | Learned Materials stockpile data 1816 | -10/Mines | Assembled infested the area 1821 | -10/Mines | Assisted by a Guerilla fighting off Assembled 2233 | -10/Mines | Learned location of Storage (-8) 2273 | -10/Mines | Discovered exit to Materials (range 7) 2525 | -10/Mines | Entered Materials 2525 | -9/Materials | Evolved 2 slots: Weapon x2 2526 | -9/Materials | Identified exit to Materials 2526 | -9/Materials | Identified exit to Mines 2927 | -9/Materials | Discovered exit to Materials (range 9) 3240 | -9/Materials | Build established: Gunner 3334 | -9/Materials | Repaired Bore Cannon 3654 | -9/Materials | Repaired Fission Core 3850 | -9/Materials | Discovered exit to Materials (range 15) 4125 | -9/Materials | First assault squad dispatched 4163 | -9/Materials | Entered Mines 4229 | -9/Mines | A Derelict revealed a hidden shortcut to a safe place 4272 | -9/Mines | Discovered exit to Materials (range 12) 4273 | -9/Mines | Discovered exit to Materials (range 12) 4286 | -9/Mines | Learned Materials garrison access intel 4394 | -9/Mines | YI-UF0 nonchalantly dropped a Grenade Launcher on the ground 4490 | -9/Mines | Destroyed YI-UF0 4501 | -9/Mines | Found Prototype Storage 4530 | -9/Mines | Deemed a non-threat by the Exiles lab entrance 4530 | -9/Mines | Discovered new exit (range 5) 4534 | -9/Mines | Entered Exiles 4534 | -9/Exiles | Found Exiles lab abandoned 4763 | -9/Exiles | Discovered new exit (range 15) 5029 | -9/Exiles | Discovered new exit (range 14) 5039 | -9/Exiles | Entered Mines 5123 | -8/Mines | Core integrity fell below 50% 5250 | -8/Mines | Lost 3 parts (1p2w) 5261 | -8/Mines | Discovered exit to Materials (range 8) 5747 | -8/Mines | Discovered exit to Materials (range 8) 6017 | -8/Mines | Entered Materials 6017 | -8/Materials | Evolved 2 slots: Utility x1, Weapon x1 6018 | -8/Materials | Identified exit to Storage 6019 | -8/Materials | Loaded intel: 1 garrison access location 6615 | -8/Materials | Identified YI-UF0's Bottomless Matter Pit 7032 | -8/Materials | Discovered new exit (range 16) 7399 | -8/Materials | Learned Storage stockpile data 7538 | -8/Materials | Learned location of 1 exit from Lower Caves 7586 | -8/Materials | Build established: Scavenger-Gunner 7593 | -8/Materials | Learned 4 Recycling zone layouts 7638 | -8/Materials | Learned location of 2 exits from Factory 7675 | -8/Materials | Identified exit to Factory 7722 | -8/Materials | Learned Storage emergency access door positions 7843 | -8/Materials | Learned 2 Storage zone layouts 8162 | -8/Materials | Repaired Imp. Assault Rifle 8261 | -8/Materials | Identified exit to Garrison 8261 | -8/Materials | Entered Garrison 8297 | -8/Garrison | Triggered checkpoint 8358 | -8/Garrison | Garrison Relay disabled 8537 | -8/Garrison | Build established: Gunner 8577 | -8/Garrison | Triggered checkpoint 8586 | -8/Garrison | Triggered checkpoint 8587 | -8/Garrison | Destroyed 7 combat bots 8609 | -8/Garrison | Garrison Relay disabled 8711 | -8/Garrison | Triggered checkpoint 8743 | -8/Garrison | Triggered checkpoint 8802 | -8/Garrison | Discovered new exit (range 8) 8823 | -8/Garrison | Discovered new exit (range 46) 8823 | -8/Garrison | Discovered new exit (range 6) 8823 | -8/Garrison | Discovered new exit (range 68) 8842 | -8/Garrison | Rescued HV-R5K 8869 | -8/Garrison | Triggered checkpoint 8879 | -8/Garrison | Garrison Relay disabled 9057 | -8/Garrison | Triggered checkpoint 9077 | -8/Garrison | Garrison Relay disabled 9262 | -8/Garrison | Triggered checkpoint 9295 | -8/Garrison | Garrison Relay disabled 9342 | -8/Garrison | Triggered checkpoint 9394 | -8/Garrison | Garrison Relay disabled 9449 | -8/Garrison | Entered Materials 9449 | -8/Materials | Accompanied by 1 ally (HV-R5K) 9683 | -8/Materials | Repaired Recoil Stabilizer 10048 | -8/Materials | Discovered exit to Factory (range 9) 10249 | -8/Materials | First assault squad dispatched 10277 | -8/Materials | Core integrity fell below 50% 10323 | -8/Materials | Discovered exit to Storage (range 5) 10383 | -8/Materials | Identified exit to Garrison 10383 | -8/Materials | Entered Garrison 10478 | -8/Garrison | Rescued a captive Derelict 10480 | -8/Garrison | Rescued a captive Derelict 10499 | -8/Garrison | Garrison Relay disabled 10764 | -8/Garrison | Triggered checkpoint 10773 | -8/Garrison | Triggered checkpoint 10873 | -8/Garrison | Triggered checkpoint 10905 | -8/Garrison | Discovered exit to Factory (range 14) 10994 | -8/Garrison | Triggered checkpoint 11020 | -8/Garrison | Garrison Relay disabled 11058 | -8/Garrison | Build established: Scavenger-Gunner 11244 | -8/Garrison | Garrison Relay disabled 11282 | -8/Garrison | Triggered checkpoint 11312 | -8/Garrison | Discovered exit to Factory (range 3) 11570 | -8/Garrison | Garrison Relay disabled 11597 | -8/Garrison | Triggered checkpoint 11616 | -8/Garrison | Garrison Relay disabled 11631 | -8/Garrison | Discovered exit to Factory (range 3) 11667 | -8/Garrison | Entered Factory 11667 | -7/Factory | Evolved 2 slots: Propulsion x1, Weapon x1 11668 | -7/Factory | Identified exit to Lower Caves 11669 | -7/Factory | Identified exit to Factory 11981 | -7/Factory | Build established: Scavenger-Executioner 11993 | -7/Factory | Repaired Exp. Heat Sink 12067 | -7/Factory | First assault squad dispatched 12294 | -7/Factory | Sucked down chute 12294 | -7/Factory | Entered Waste 12295 | -7/Waste | Joined by Warlord forces that had cleared the area 12363 | -7/Waste | Murdered 3 allies 12719 | -7/Waste | Discovered new exit (range 14) 12730 | -7/Waste | Found Imp. Powered Armor 13818 | -7/Waste | Entered Factory 13818 | -7/Factory | Accompanied by 19 allies 14143 | -7/Factory | Garrison activated, responded to threat 14191 | -7/Factory | Lost 5 allies 14441 | -7/Factory | Garrison activated, responded to threat 14483 | -7/Factory | Lost 3 allies 14489 | -7/Factory | Identified exit to Garrison 14504 | -7/Factory | Entered Garrison 14504 | -7/Garrison | Accompanied by 7 allies 14597 | -7/Garrison | Triggered checkpoint 14687 | -7/Garrison | Lost 3 allies 14695 | -7/Garrison | Garrison Relay disabled 14799 | -7/Garrison | Triggered checkpoint 14888 | -7/Garrison | Triggered checkpoint 15000 | -7/Garrison | Triggered checkpoint 15082 | -7/Garrison | Triggered checkpoint 15291 | -7/Garrison | Triggered checkpoint 15338 | -7/Garrison | Garrison Relay disabled 15385 | -7/Garrison | Discovered new exit (range 10) 15454 | -7/Garrison | Found embedded Infiltrators 15713 | -7/Garrison | Phase Generator disabled 15729 | -7/Garrison | Discovered new exit (range 3) 15958 | -7/Garrison | Triggered checkpoint 15980 | -7/Garrison | Garrison Relay disabled 15999 | -7/Garrison | Triggered checkpoint 16000 | -7/Garrison | Lost 6 allies 16070 | -7/Garrison | Triggered checkpoint 16287 | -7/Garrison | Discovered new exit (range 10) 16300 | -7/Garrison | Triggered checkpoint 16320 | -7/Garrison | Garrison Relay disabled 16373 | -7/Garrison | Rescued a captive Derelict 16376 | -7/Garrison | Rescued a captive Derelict 16412 | -7/Garrison | Entered Factory 16412 | -7/Factory | Accompanied by 8 allies 16470 | -7/Factory | Discovered exit to Lower Caves (range 5) 16595 | -7/Factory | Lost 4 allies 16642 | -7/Factory | Discovered exit to Lower Caves (range 15) 16691 | -7/Factory | Discovered exit to Factory (range 15) 16969 | -7/Factory | Identified exit to Garrison 16973 | -7/Factory | Entered Garrison 16973 | -7/Garrison | Accompanied by 4 allies 16985 | -7/Garrison | Triggered checkpoint 17034 | -7/Garrison | Garrison Relay disabled 17162 | -7/Garrison | P-60 Hacker assimilated allied Marksman 4a 17162 | -7/Garrison | P-60 Hacker assimilated allied ER-178(h) 17166 | -7/Garrison | P-60 Hacker assimilated allied 9D-7Y8(m) 17349 | -7/Garrison | Triggered checkpoint 17372 | -7/Garrison | Triggered checkpoint 17427 | -7/Garrison | Triggered checkpoint 17656 | -7/Garrison | Triggered checkpoint 17773 | -7/Garrison | Garrison Relay disabled 17793 | -7/Garrison | Discovered exit to Factory (range 14) 17878 | -7/Garrison | Learned Factory security intel 18018 | -7/Garrison | Garrison Relay disabled 18051 | -7/Garrison | Discovered exit to Factory (range 10) 18348 | -7/Garrison | Discovered exit to Factory (range 8) 18425 | -7/Garrison | Garrison Relay disabled 18477 | -7/Garrison | Attempted to access garrison exit controls, blocked by remote lockdown 18657 | -7/Garrison | Entered Factory 18657 | -6/Factory | Accompanied by 3 allies 18657 | -6/Factory | Evolved 2 slots: Propulsion x1, Utility x1 19007 | -6/Factory | First assault squad dispatched 19067 | -6/Factory | Manually triggered Chute Trap 19067 | -6/Factory | Sucked down chute 19067 | -6/Factory | Entered Waste 19070 | -6/Waste | Spotted C-40 Crusher 19077 | -6/Waste | Spotted C-40 Crusher 19082 | -6/Waste | EMP discharged 19087 | -6/Waste | Spotted C-40 Crusher 19091 | -6/Waste | Spotted C-40 Crusher 19097 | -6/Waste | Spotted C-40 Crusher 19104 | -6/Waste | Spotted C-40 Crusher 19115 | -6/Waste | Crushed by Compactor (1 part destroyed) 19140 | -6/Waste | Discovered new exit (range 16) 19166 | -6/Waste | Entered Factory 19203 | -6/Factory | Fabricated M-13 Machinist (x1) 19421 | -6/Factory | Spotted B-75 Beast 19469 | -6/Factory | Destroyed B-75 Beast 19516 | -6/Factory | Identified exit to Garrison 19616 | -6/Factory | Garrison activated, responded to threat 19619 | -6/Factory | Entered Garrison 19619 | -6/Garrison | Accompanied by 3 allies 19659 | -6/Garrison | Triggered checkpoint 19661 | -6/Garrison | P-60 Hacker assimilated allied G-50 Soldier 19778 | -6/Garrison | Spotted B-75 Beast 19808 | -6/Garrison | Spotted B-75 Beast 19825 | -6/Garrison | Destroyed B-75 Beast 19829 | -6/Garrison | Destroyed B-75 Beast 19849 | -6/Garrison | Lost 4 parts (1n3w) 20107 | -6/Garrison | Rewired B-90 Cyclops 20135 | -6/Garrison | Rewired B-90 Cyclops 20267 | -6/Garrison | Garrison Relay disabled 20329 | -6/Garrison | Triggered checkpoint 20363 | -6/Garrison | Triggered checkpoint 20415 | -6/Garrison | Triggered checkpoint 20435 | -6/Garrison | Triggered checkpoint 20604 | -6/Garrison | Triggered checkpoint 20662 | -6/Garrison | Garrison Relay disabled 20685 | -6/Garrison | Discovered new exit (range 14) 20891 | -6/Garrison | Triggered checkpoint 20930 | -6/Garrison | Garrison Relay disabled 21024 | -6/Garrison | Triggered checkpoint 21063 | -6/Garrison | Garrison Relay disabled 21211 | -6/Garrison | Garrison Relay disabled 21286 | -6/Garrison | Discovered new exit (range 9) 21324 | -6/Garrison | Phase Generator disabled 21521 | -6/Garrison | Discovered new exit (range 10) 21612 | -6/Garrison | Triggered checkpoint 21642 | -6/Garrison | Discovered new exit (range 3) 21680 | -6/Garrison | Entered Factory 21680 | -6/Factory | Accompanied by 6 allies 21691 | -6/Factory | Identified exit to DSF 21692 | -6/Factory | Entered DSF 21692 | -6/DSF | Accompanied by 6 allies 21702 | -6/DSF | Additional patrols routed to DSF 21800 | -6/DSF | Sterilization system engaged 21820 | -6/DSF | Ambient heat levels rising (+10) 21829 | -6/DSF | Discovered new exit (range 16) 21835 | -6/DSF | Ambient heat levels rising (+10) 21850 | -6/DSF | Ambient heat levels rising (+10) 21861 | -6/DSF | Entered Factory 21861 | -5/Factory | Accompanied by 2 allies 21861 | -5/Factory | Evolved 2 slots: Utility x1, Weapon x1 21880 | -5/Factory | Identified exit to Upper Caves 22198 | -5/Factory | Garrison activated, responded to threat 22668 | -5/Factory | Lost 5 parts (3n2w) 22877 | -5/Factory | Entered Upper Caves 22884 | -5/Upper Caves | Met a Warlord Commander 22885 | -5/Upper Caves | Learned location of Warlord (-5) 22886 | -5/Upper Caves | Warlord Commander delivered Encrypted Comm Array 22902 | -5/Upper Caves | Found Encrypted Comm Array 22977 | -5/Upper Caves | A Derelict revealed a hidden shortcut to "reach the base" 23186 | -5/Upper Caves | Attracted the attention of an 0b10 checkpoint 23305 | -5/Upper Caves | Spotted B-75 Beast 23519 | -5/Upper Caves | Encountered a Warlord checkpoint 23825 | -5/Upper Caves | Discovered new exit (range 14) 23893 | -5/Upper Caves | Entered another Upper Caves area 23948 | -5/Upper Caves | Encountered a Warlord checkpoint 24098 | -5/Upper Caves | Learned 12 Factory zone layouts 25166 | -5/Upper Caves | Spotted B-75 Beast 25216 | -5/Upper Caves | Destroyed B-75 Beast 25243 | -5/Upper Caves | Lost 5 parts (3n1u1w) 25335 | -5/Upper Caves | Identified exit to Warlord 25506 | -5/Upper Caves | Entered Warlord 25561 | -5/Warlord | System corruption cleaned by Quarantine Array 25689 | -5/Warlord | Found Prototype Device 25689 | -5/Warlord | Identified Exp. Phase Shifter 25700 | -5/Warlord | Found Prototype Device 25700 | -5/Warlord | Identified Exp. Focal Shield 25714 | -5/Warlord | Found Prototype Hackware 25724 | -5/Warlord | Found Prototype Reactor 26063 | -5/Warlord | Found Prototype Device 26063 | -5/Warlord | Identified Minesniffer Drone Bay 26186 | -5/Warlord | Met Warlord 26196 | -5/Warlord | Warlord's base attacked by MAIN.C 26325 | -5/Warlord | Met EX-DEC 26332 | -5/Warlord | Found Prototype Energy Gun 26332 | -5/Warlord | Identified Vortex Rail 26339 | -5/Warlord | Found Vortex Rail 26359 | -5/Warlord | Found Prototype Energy Cannon 26368 | -5/Warlord | Identified BFG-9k Vortex Edition 26546 | -5/Warlord | Warlord forces counterattacked 26595 | -5/Warlord | Found Corrupted Prototype Ballistic Cannon 26595 | -5/Warlord | Identified Hvy. Autocannon 26635 | -5/Warlord | Spotted Striker 26638 | -5/Warlord | Spotted Executioner 26685 | -5/Warlord | Lost 15 allies 26696 | -5/Warlord | Spotted Striker 26700 | -5/Warlord | Spotted Executioner 26702 | -5/Warlord | Destroyed Executioner 26729 | -5/Warlord | P-70 Sage assimilated allied WQ-74D(b) 26736 | -5/Warlord | Core integrity fell below 50% 26744 | -5/Warlord | Discovered new exit (range 15) 26758 | -5/Warlord | Lost 4 parts (1p1n1u1w) 26770 | -5/Warlord | Lost 7 allies 26786 | -5/Warlord | Entered Proximity Caves 26786 | -4/Proximity Caves | Accompanied by 2 allies 27417 | -4/Proximity Caves | Destroyed 7 combat bots 27424 | -4/Proximity Caves | Lost 4 parts (4w) 27647 | -4/Proximity Caves | Build established: Scavenger-Skirmisher 27730 | -4/Proximity Caves | Spotted B-86 Titan 28027 | -4/Proximity Caves | Build established: Scavenger-Mutant 28329 | -4/Proximity Caves | Build established: Scavenger-Skirmisher 28431 | -4/Proximity Caves | Discovered new exit (range 14) 28450 | -4/Proximity Caves | Lost 4 parts (1n1u2w) 28524 | -4/Proximity Caves | Learned Research security intel 28560 | -4/Proximity Caves | Learned 8 Research zone layouts 28709 | -4/Proximity Caves | Build established: Scavenger-Mutant 28785 | -4/Proximity Caves | Entered Factory 28785 | -4/Factory | Evolved 2 slots: Power x1, Utility x1 28786 | -4/Factory | Identified exit to Extension 28787 | -4/Factory | Identified exit to Research 28795 | -4/Factory | Identified exit to DSF 29281 | -4/Factory | Lost 8 parts (2p2n2u2w) 29283 | -4/Factory | Identified Vortex Chain Reactor 29563 | -4/Factory | Build established: Scavenger-Gunner 29597 | -4/Factory | Discovered exit to Research (range 14) 29921 | -4/Factory | Lost 4 parts (1n1u2w) 29972 | -4/Factory | Spotted B-86 Titan 29988 | -4/Factory | Sucked down chute 29988 | -4/Factory | Entered Waste 30003 | -4/Waste | EMP discharged 30032 | -4/Waste | Spotted C-40 Crusher 30032 | -4/Waste | Spotted C-40 Crusher 30033 | -4/Waste | Spotted C-40 Crusher 30034 | -4/Waste | Spotted C-40 Crusher 30041 | -4/Waste | Spotted C-40 Crusher 30095 | -4/Waste | Spotted C-40 Crusher 30103 | -4/Waste | EMP discharged 30106 | -4/Waste | Crushed by Compactor (1 part destroyed, 1 dropped) 30114 | -4/Waste | Discovered new exit (range 10) 30125 | -4/Waste | Entered Factory 30152 | -4/Factory | Identified exit to DSF 30152 | -4/Factory | Entered DSF 30206 | -4/DSF | Additional patrols routed to DSF 30214 | -4/DSF | System corruption reached 10% 30358 | -4/DSF | Sterilization system engaged 30378 | -4/DSF | Ambient heat levels rising (+10) 30391 | -4/DSF | Lost 18 parts (1p3n4u10w) 30393 | -4/DSF | Ambient heat levels rising (+10) 30408 | -4/DSF | Ambient heat levels rising (+10) 30408 | -4/DSF | Core integrity fell below 50% 30416 | -4/DSF | Released all parts (5) 30417 | -4/DSF | System corruption reached 30% 30423 | -4/DSF | Ambient heat levels rising (+10) 30425 | -4/DSF | Discovered exit to Research (range 14) 30438 | -4/DSF | Ambient heat levels rising (+10) 30446 | -4/DSF | Lost 4 parts (2n2w) 30450 | -4/DSF | Entered Research 30450 | -3/Research | Evolved 2 slots: Utility x1, Weapon x1 30451 | -3/Research | Identified exit to Armory 30451 | -3/Research | Identified exit to Quarantine 30699 | -3/Research | Lost 5 parts (2p3n) 30726 | -3/Research | Discovered new exit (range 4) 30728 | -3/Research | Entered another Research area 30728 | -2/Research | Warlord forces began assault on 0b10 30728 | -2/Research | Evolved 2 slots: Utility x1, Weapon x1 30753 | -2/Research | Distinguished unit "Golden Rifle" dispatched to help 30753 | -2/Research | Distinguished unit "Knights of the Pentagonal Table" dispatched to help 30783 | -2/Research | Spotted B-90 Cyclops 30838 | -2/Research | Research machine network offline 31087 | -2/Research | Borebot progress halted 31250 | -2/Research | Found Quantum Capacitor 31293 | -2/Research | Borebot progress halted 31456 | -2/Research | Build established: Scavenger-Executioner 31732 | -2/Research | Spotted Striker 31776 | -2/Research | Lost 3 allies 31891 | -2/Research | Met up with Warlord 31896 | -2/Research | Warlord invited to help at Command 31896 | -2/Research | Given Cave Seal Controls access code 32004 | -2/Research | Borebot progress halted 32672 | -2/Research | Discovered new exit (range 14) 32797 | -2/Research | Spotted Executioner 33073 | -2/Research | Identified exit to Testing 33305 | -2/Research | Found Exp. Core Analyzer 33358 | -2/Research | Found Exp. Targeting Computer 33363 | -2/Research | Discovered new exit (range 23) 33380 | -2/Research | Found Exp. Core Analyzer 33573 | -2/Research | Found Prototype Device 33573 | -2/Research | Identified Adv. Kinecellerator 33603 | -2/Research | Discovered exit to Testing (range 4) 33649 | -2/Research | Found Exp. Core Analyzer 33725 | -2/Research | Lost 6 allies 33875 | -2/Research | Entered Testing 33940 | -2/Testing | Found Prototype Energy Gun 33940 | -2/Testing | Identified Hyp. EM Gauss Rifle 34114 | -2/Testing | P-80 Master assimilated allied FT-SSW(s) 34116 | -2/Testing | Spotted JJ-ROG(L) 34127 | -2/Testing | Destroyed JJ-ROG(L) 34167 | -2/Testing | Lost 5 allies 34248 | -2/Testing | Found Prototype Protection 34388 | -2/Testing | Discovered new exit (range 5) 34559 | -2/Testing | Found Prototype Device 34559 | -2/Testing | Identified 2N-1CE's Frost Array 35048 | -2/Testing | Identified exit to Garrison 35147 | -2/Testing | Garrison activated, responded to threat 35193 | -2/Testing | Destroyed 7 combat bots 35274 | -2/Testing | Scanned by Researcher 35349 | -2/Testing | Lost 4 parts (1p3w) 35389 | -2/Testing | Spotted Fortress 35474 | -2/Testing | Lost 8 parts (1p3n4w) 35499 | -2/Testing | Discovered new exit (range 5) 35499 | -2/Testing | Discovered new exit (range 6) 35511 | -2/Testing | Entered Protoforge 35591 | -2/Protoforge | Spotted Hotshot 35594 | -2/Protoforge | Spotted Hotshot 35602 | -2/Protoforge | Spotted Hotshot 35605 | -2/Protoforge | Spotted Hotshot 35606 | -2/Protoforge | Superfortress began startup sequence 35607 | -2/Protoforge | Spotted Hotshot 35650 | -2/Protoforge | Core integrity fell below 50% 35652 | -2/Protoforge | Released all parts (6) 35653 | -2/Protoforge | System corruption reached 10% 35660 | -2/Protoforge | Core integrity fell below 20% 35663 | -2/Protoforge | Spotted Hotshot 35663 | -2/Protoforge | Spotted Hotshot 35663 | -2/Protoforge | Spotted Hotshot 35663 | -2/Protoforge | Spotted Hotshot 35663 | -2/Protoforge | Spotted Hotshot 35677 | -2/Protoforge | Lost 17 parts (3p2n2u10w) 35723 | -2/Protoforge | Destroyed by H-88 Terminator with KE Penetrator Last Messages --------------- 35662_ N-04 Retriever collects Adv. Cryofiber Web. 35678_ System corrupted: Matter fused (-8). 35690_ ALERT: Hostiles spotted, dispatching reinforcements to Terminal F016. 35691_ Sneak attack on K-01 Serf. 35691_ K-01 Serf destroyed. 35692_ Acquired 26 matter. 35695_ Acquired Wheel. 35700_ Sneak attack on K-01 Serf. 35700_ Destroyed Lgt. Ion Engine. 35700_ Destroyed Wheel. 35700_ K-01 Serf destroyed. 35702_ Acquired 17 matter. 35703_ Acquired Wheel. 35709_ Sneak attack on K-01 Serf. 35709_ Destroyed Lgt. Ion Engine. 35709_ K-01 Serf destroyed. 35711_ Acquired 19 matter. 35712_ Acquired Wheel. 35723_ Slug penetrates Wall. Map ----- +----------------------------------------------------+ | ?????????????????????????????????????????????????? | | ?????????????????????????????????????????????????? | | ?????????????????????????????????????????????????? | | ?????????????????????????????????????????????????? | | ?????????????????????????????????????????????????? | | ?????????????????????????????????????????????????? | | ?????????????????????????????????????????????????? | | ?????????????????????????????????????????????????? | | ?????????????????????????????????????????????????? | | ?????????????????????????????????????????????????? | | ??????????????????? ?????#?????????????????????? | | ?????????????????# ??#"""" #??????????????????? | | ?????????????????# ??#""R""#??????????????????? | | ?????????????????# ###"" ""###????????????????? | | ?????????????????# # #????????????????? | | ?????????????????# # #????????????????? | | ?????????????????# # #????????????????? | | ?????????????????# # #????????????????? | | ?????????????????# + #????????????????? | | ?????????????????# # #????????????????? | | ?????????????????# # ?????????????????? | | ?????????????????# #?? ???????????????????? | | ?????????????????# #???#+#????????????????????# | | ?????????????????# #???# #???????????????????? | | ?????????????????# #####h###########+####?????# | | ?????????????????+ @ #?????# | | ?????????????????# #?????# | | ?????????????????# #?????# | | ?????????????????# g #?????# | | ?????????????????########+##############+#+####### | | ?????????????????????????????????# + | | ?????????????????????????????????#"" """ ### | | ?????????????????????????????????#"" """""" #?# | | ??????????????????????????????????"T """""" #?# | | ?????????????????????????????????#"" """""" #?# | | ?????????????????????????????????#"" ? #?# | | ?????????????????????????????????? ?? """ ### | | ???????????????????????????????????????""""" + | | ????????????????????????????????????????"""" ### | | ??????????????????????????????????????????"" #?# | | ??????????????????????????????????????????? #?# | | ??????????????????????????????????????????###+#### | | ??????????????????????????????????????????# | | ?????????????????????????????? ?????????# | | ????????????????????????????# ????????## """ | | ?????????????????????????? # ????????+ """ | | ?????????????????????????" # #???????## """ | | ?????????????????????????" # #????????# | | ????????????????????"??""" # ###+###### """ | | ????????????????????" """" # """ | +----------------------------------------------------+ Best States ------------- Heat Dissipation 180 Coolant Potential 100 Energy Generation 55 Energy Capacity 880 Matter Stores 1481 Matter Capacity 1800 Sight Range 23 Terrain Scan Density 85 Jamming Range 16 Power Amplification 30 Base Temperature (-) 200 Corruption Containment 12 Armor Coverage 400 Resistance: KI 30 Core Shielding 20 Propulsion Shielding 33 Point Defense Rating 160 Phase Shifting 20 Evasion (%) 60 Targeting Accuracy 12 Melee Accuracy 12 Target Analysis 12 Core Analysis 8 Recoil Reduction 6 Kinecelleration 50 Salvage Targeting 4 Offensive Hacking 14 Authchip Count 1 Trap Extractor Capacity 6 Item Schematics ----------------- Bore Cannon | -9/Materials | Scanalyzed Recoil Stabilizer | -8/Materials | Scanalyzed Wheel | -8/Materials | Scanalyzed Hvy. Assault Rifle | -8/Materials | Scanalyzed Arm. Wheel | -8/Materials | Hacked Fission Core | -8/Materials | Scanalyzed Hvy. Dispersion Rifle | -2/Testing | Archive Adv. Plasma Rifle | -2/Testing | Archive Particle Accelerator | -2/Testing | Archive Exp. Thermal Defense Suite | -2/Testing | Archive Exp. Cesium-ion Thruster | -2/Testing | Archive Robot Schematics ------------------ M-13 Machinist | -10/Materials | Hacked G-73 Enforcer | -2/Testing | Archive H-88 Terminator | -2/Testing | Archive A-02 Transporter | -2/Testing | Archive R-06 Scavenger | -2/Testing | Archive Fabricated ------------ M-13 Machinist | x1 | -6/Factory | Authchip Repaired ---------- Bore Cannon | 36% | -9/Materials Fission Core | 35% | -9/Materials Imp. Assault Rifle | 62% | -8/Materials Recoil Stabilizer | 28% | -8/Materials Exp. Heat Sink | 58% | -7/Factory Alien Tech Used ----------------- None Achievements -------------- None Challenges ------------ None Game ------ Seed TowerChargePrototype Manual? 0 Play Time 05:53:31 Cumulative 1191.2 hours Start 2025.08.03 @ 14:46:14 End 2025.08.03 @ 21:17:29 Sessions 5 Manual Loads 0 Difficulty Rogue Special Mode None Game No. 575 Rogue 575 Adventurer 0 Explorer 0 Win Type - Total 23 Types 10/4/3/0/1/1/2/2/0/0 Lore% 90 Gallery% 90 Achievement% 84 Wizard Run 0 Options --------- Layout 0 ASCII 0 Keyboard 0 Movement Numpad Keybinds 0 Fullscreen 2 Font 24/Smallcaps Map View 76x50 Zoom Use 0% Tactical HUD 1 Map Filters NONE Filters SHIFT_HUE(315) Steam 1 RUN: 9f41fd07-a2eb-486c-b848-db4a6f1a764f